Cogmind - Beta 16 @@@ ROGUE MODE // 2025.11.19 @ 19:13:59 Player: ChromeKnight Result: Escaped! Performance ------------- Evolutions (9) 4500 Regions Visited (29) 5800 Robots Destroyed (310) 1550 Value Destroyed (15383) 15383 Prototype IDs (133) 2660 Alien Tech Used (8) 1600 Bonus (23688) 23688 TOTAL SCORE: 55181 Bonus ------- Triggered High Security 500 High Alert Combat Kills 5933 Follower Combat Kills 2912 Network Hubs Disabled 400 Aligned with FarCom 300 Met Warlord at Base 500 MAIN.C Attacked Warlord 500 Built Enhanced Grunts 300 Met R17 at Cetus 500 Found Hidden Lab 3000 Met R17 at Research 2000 Met Warlord at Research 2000 Invited to Help at Command 2000 Scanned by Researcher 500 Win 3000 Friendly Fire -657 Cogmind --------- Core Integrity 446/1600 Matter 300/300 Energy 98/100 System Corruption 2% Temperature Cool (9) Movement Core (50) Location To Epsilon Eridani Parts ------- > --- POWER (2) -------- (None) > --- PROPULSION (8) --- (None) > --- UTILITY (13) ----- (None) > --- WEAPON (2) ------- (None) > --- INVENTORY (5) ---- Medium Regenerative Plating Core Cannon Micro-nuke Launcher Peak State ------------ > --- POWER ------------ Experimental Antimatter Reactor Concept Zero-point Core > --- PROPULSION ------- Gravjet Array Gravjet Array Gravjet Array Gravjet Array > --- UTILITY ---------- Large Storage Unit Improved Melee Analysis Suite Advanced Melee Analysis Suite Concept Projectile Intercept Suite Experimental Core Analyzer Experimental Armor Integrity Analyzer Concept Reaction Jets Concept Phase Shift Module Concept Core Shell Concept RG22 Armor Concept RG22 Armor Concept RG22 Armor Advanced Force Field > --- WEAPON ----------- Experimental Jetlance Experimental Jetlance > --- INVENTORY -------- Light Quantum Reactor Hybrid Graviton Reactor Gravjet Array Experimental Reaction Control System Advanced Phase Shifter Concept Phase Shift Module Concept Core Shell Medium Regenerative Plating Experimental EM Shield Crosscalibrator Core Cannon Concept Rapid Grenade Launcher Experimental Jetlance [Rating: 264] Favorites ----------- Power Improved Ion Engine Engine Improved Ion Engine Power Core Light Nuclear Core Reactor Vortex Chain Reactor Propulsion Combat Linear Gravjet Treads Light Treads Leg Improved Aluminum Leg Hover Unit Combat Linear Gravjet Flight Unit Cooled VTOL Module Utility Large Storage Unit Device Advanced Sensor Array Storage Large Storage Unit Processor Experimental Core Analyzer Hackware Improved Hacking Suite Protection Medium Regenerative Plating Artifact Phase Redirector Weapon Improved Light Cannon Energy Gun Vortex Rail Energy Cannon Concept Plasma Driver Ballistic Gun 8R-AWN's Boregun Ballistic Cannon Improved Light Cannon Launcher EMP Blaster Special Weapon Field Lobotomy Kit Impact Weapon Core Stripper Slashing Weapon Longsword +1 Piercing Weapon Experimental Jetlance Build | -11 -10 -10 -9 -9 -9 -8 -8 -8 -8 -6 -6 -6 -6 -6 -6 -6 -5 -5 -5 -5 -4 -4 -3 -3 -3 -2 -2 -2 -1 ------- Run | Yrd Mat Min Mat Min Exi Min Mat Sto Rec Fac Was Fac Ext Cet Arc Hub Fac Upp Upp War Pro Fac Res Arm Lab Res Qua Frg Acc Slots Evolved 18 | . . . 2 . . . 2 . . 4 . . . . . . 2 . . . . 2 2 . . 2 . . 2 Power 1 | . . . . . . . . . . 1 . . . . . . . . . . . . . . . . . . . Propulsion 6 | . . . 1 . . . 1 . . 2 . . . . . . . . . . . . 1 . . 1 . . . Utility 11 | . . . 1 . . . 1 . . 1 . . . . . . 2 . . . . 2 1 . . 1 . . 2 Weapon . | . . . . . . . . . . . . . . . . . . . . . . . . . . . . . . Parts Attached 272 | 6 4 . 5 4 25 3 19 16 2 5 . 6 5 8 . 4 10 2 1 7 . 4 13 12 3 13 22 62 11 Power 33 | 1 . . 1 . 2 . 4 2 . 1 . 1 3 1 . . 2 . . 1 . . 4 3 . . 1 6 . Engine 9 | 1 . . 1 . . . . 1 . 1 . 1 3 . . . 1 . . . . . . . . . . . . Core 9 | . . . . . 2 . 4 1 . . . . . . . . 1 . . . . . . . . . . 1 . Reactor 15 | . . . . . . . . . . . . . . 1 . . . . . 1 . . 4 3 . . 1 5 . Propulsion 78 | 2 . . 1 1 7 2 8 9 1 . . 2 . 2 . 3 4 1 . 1 . . 7 6 . 2 2 15 2 Treads 5 | 2 . . 1 1 1 . . . . . . . . . . . . . . . . . . . . . . . . Leg 19 | . . . . . 6 2 7 3 . . . . . . . . . . . . . . . . . . . . 1 Wheel . | . . . . . . . . . . . . . . . . . . . . . . . . . . . . . . Hover 53 | . . . . . . . 1 5 1 . . 2 . 2 . 3 4 1 . 1 . . 7 6 . 2 2 15 1 Flight 1 | . . . . . . . . 1 . . . . . . . . . . . . . . . . . . . . . Utility 115 | 1 2 . 3 1 10 1 3 3 . 3 . 3 1 4 . 1 3 1 1 4 . 4 2 2 1 9 16 28 8 Device 47 | . . . 1 . . . . . . 1 . 1 . 2 . 1 1 1 1 2 . 3 2 . . 5 10 14 2 Storage 7 | 1 1 . 1 . 1 . . . . . . 1 . . . . . . . . . . . . . 1 . . 1 Processor 24 | . . . . . 2 . 2 . . 1 . . . . . . 1 . . 2 . . . . . 3 2 7 4 Hackware 4 | . . . . . 2 . . . . . . 1 . . . . . . . . . . . . . . 1 . . Protection 32 | . 1 . 1 1 5 1 1 3 . 1 . . 1 2 . . 1 . . . . 1 . 2 1 . 2 7 1 Artifact 1 | . . . . . . . . . . . . . . . . . . . . . . . . . . . 1 . . Weapon 46 | 2 2 . . 2 6 . 4 2 1 1 . . 1 1 . . 1 . . 1 . . . 1 2 2 3 13 1 Energy Gun 5 | . . . . . . . . . . . . . . 1 . . . . . 1 . . . . 1 . . 2 . Energy Cannon 4 | . . . . . . . . . . . . . . . . . . . . . . . . . 1 . 1 2 . Ballistic Gun 9 | 2 . . . . 2 . . 2 . 1 . . . . . . . . . . . . . . . 1 . 1 . Ballistic Cannon 10 | . 2 . . 2 3 . 2 . . . . . . . . . . . . . . . . . . . 1 . . Launcher 6 | . . . . . . . 2 . . . . . . . . . . . . . . . . . . 1 . 3 . Special Weapon 2 | . . . . . . . . . . . . . 1 . . . . . . . . . . . . . . 1 . Impact Weapon 1 | . . . . . . . . . . . . . . . . . . . . . . . . . . . 1 . . Slashing Weapon 5 | . . . . . 1 . . . 1 . . . . . . . 1 . . . . . . . . . . 2 . Piercing Weapon 4 | . . . . . . . . . . . . . . . . . . . . . . . . 1 . . . 2 1 Special Melee Weapon . | . . . . . . . . . . . . . . . . . . . . . . . . . . . . . . Unidentified Prototypes 71 | . . . . . 2 . 2 3 1 1 . . . 5 . . . . 1 7 . 2 . . 5 3 13 26 . Corrupted Parts 2 | . . . . . . . . . . . . . . . . . . . . . . . . . . . . 2 . System Corruption 13 | . . . . . . . . . . . . . . . . . . . . . . . . . . . . 13 . Parts Lost 74 | . . . . . 14 2 9 3 . . . 1 1 1 . 1 . . 1 . . . . 5 . 2 2 14 18 Power 10 | . . . . . 1 . 1 . . . . 1 . . . . . . . . . . . 2 . 1 . 3 1 Propulsion 20 | . . . . . 5 1 4 1 . . . . . . . 1 . . . . . . . . . . . 2 6 Utility 34 | . . . . . 6 1 2 1 . . . . . 1 . . . . 1 . . . . 3 . 1 2 7 9 Weapon 10 | . . . . . 2 . 2 1 . . . . 1 . . . . . . . . . . . . . . 2 2 Highest Loss Streak 16 | . . . . . 8 1 5 2 . . . 1 1 1 . 1 . . 1 . . . . 1 . 1 1 3 16 To Critical Strikes 2 | . . . . . 1 . . . . . . . . . . . . . . . . . . . . . . 1 . Average Backups 13 | . 6 9 15 18 15 13 13 13 13 12 13 14 13 13 14 13 12 13 11 13 14 13 13 13 12 13 13 11 14 Power . | . . . . . . . . . . . . . 1 . . . . . . . 1 1 1 1 1 1 . . 1 Propulsion 2 | . . . 1 1 1 1 1 3 3 2 2 4 5 5 4 4 3 4 4 4 5 5 5 5 6 5 5 1 . Utility 6 | . 2 4 8 10 6 7 7 7 9 8 9 7 6 6 9 8 7 8 6 6 6 5 6 4 3 3 3 6 9 Weapon 2 | . 4 5 5 6 6 3 2 1 . . . . . . . . . . . . . . . . 1 1 1 2 3 Tool/Special . | . . . . . . . . . . . . . . . . . . . . . . . . . . . . . . Unused Backups 60 | . 1 . 1 3 10 . 10 . . . 4 6 . 1 . 1 3 . 1 2 . . 3 . 1 . 2 4 7 Power 7 | . . . 1 . 3 . . . . . . . . . . . . . . . . . 1 . . . . . 2 Propulsion 9 | . . . . . 1 . 3 . . . . 1 . . . . 1 . 1 . . . 1 . . . . 1 . Utility 33 | . . . . 3 4 . 7 . . . 3 3 . 1 . 1 1 . . 2 . . 1 . 1 . 1 1 4 Weapon 11 | . 1 . . . 2 . . . . . 1 2 . . . . 1 . . . . . . . . . 1 2 1 Tool/Special . | . . . . . . . . . . . . . . . . . . . . . . . . . . . . . . Average Slot Usage (%) 88 | . 95 100 94 100 82 87 92 85 100 96 100 92 84 74 80 80 88 94 92 93 94 93 95 93 92 86 85 81 77 Engine 4 | . 14 14 11 11 5 . . 1 . 4 6 11 13 3 . . 3 5 5 4 5 5 1 . . . . . . Core 2 | . . . . . 1 11 8 6 9 6 6 1 . . . . 1 5 5 4 5 5 1 . . . . . 3 Reactor 1 | . . . . . . . . . . . . . . 4 6 6 . . . . . . 5 8 9 4 4 3 3 Treads 6 | . 28 28 30 33 15 . . . . . . . . . . . . . . . . . . . . . . . . Leg 5 | . . . . . 10 32 34 10 . . . . . . . . . . . . . . . . . . . . . Hover 16 | . . . . . . . . 21 36 39 40 32 26 26 26 26 29 29 29 28 29 26 28 28 28 30 30 25 14 Device 5 | . . . 7 . . . . . . 5 6 6 5 5 6 6 9 5 7 8 5 9 13 12 14 12 10 5 11 Storage 7 | . 14 14 11 11 11 11 9 9 9 6 6 6 6 6 6 6 5 5 5 5 5 5 4 4 4 4 4 4 3 Processor 12 | . . . . . 3 11 22 19 18 13 13 13 13 13 13 13 16 17 14 13 17 15 14 14 14 16 18 23 20 Protection 10 | . 10 14 11 22 16 10 2 6 9 6 6 4 6 5 6 6 6 11 10 11 11 15 14 14 12 8 7 9 11 Ballistic Gun 1 | . 3 . . . . . . 6 17 6 6 6 4 . . . . . . . . . . . . 1 2 . . Ballistic Cannon 6 | . 24 28 22 22 14 . 7 3 . . . . . . . . . . . . . . . . . . . . . Slashing Weapon 3 | . . . . . 2 11 1 . . 6 6 6 6 6 6 6 6 11 10 10 9 5 4 4 3 4 3 2 . Peak Build Rating 264 | 6 11 11 18 19 40 41 45 57 62 85 85 98 100 98 94 96 102 97 95 104 101 113 141 168 172 192 206 245 264 Average Rating 89 | 3 10 11 16 18 21 38 39 43 55 82 84 92 95 88 94 94 96 95 88 90 96 107 128 149 166 184 193 204 237 On Entrance 87 | . 6 11 11 17 19 40 35 42 54 62 85 85 95 88 94 94 94 97 95 87 96 101 108 138 168 168 192 199 243 Avg Prop Armor Cover (%) 3 | . . . . . 7 . . 8 . . . . . . . 6 4 2 . . . . 3 . . 1 . 6 4 Naked Turns 3 | . . . . . . . . . . . . . . . . . . . . . . . . . . . . . 3 Heaviest Build 119 | 13 38 38 67 67 75 40 40 44 42 45 45 48 53 56 49 49 56 54 56 62 60 64 76 89 95 101 107 107 119 Greatest Support 122 | 40 40 40 60 60 60 55 59 60 33 48 48 59 59 59 59 59 76 64 64 64 64 64 91 96 95 109 112 122 120 Greatest Overweight (x) 24 | . . . 1 1 24 1 . 5 1 . . . . . . 1 . . . 1 . . 1 . . . . 1 7 Average Overweight (x) . | . . . . 1 1 . . . 1 . . . . . . . . . . . . . . . . . . . . Largest Inventory Capacity 20 | 8 15 15 20 20 20 15 15 15 15 15 15 15 15 15 15 15 15 15 15 15 15 15 15 15 15 15 15 15 20 Average Capacity 15 | 6 9 15 17 20 18 15 15 15 15 15 15 15 15 15 15 15 15 15 15 15 15 15 15 15 15 15 15 15 17 Most Carried 20 | . 9 9 20 20 20 15 15 15 15 15 15 15 15 15 15 15 15 15 15 15 15 15 15 15 15 15 15 15 20 Average Carried 14 | . 6 9 15 19 15 14 14 14 14 13 14 14 14 14 15 14 13 14 12 13 14 14 14 14 14 14 14 13 16 Final Capacity 20 | 8 15 15 20 20 15 15 15 15 15 15 15 15 15 15 15 15 15 15 15 15 15 15 15 15 15 15 15 15 5 Final Carried 20 | . 9 9 20 20 15 13 15 15 15 15 15 15 15 15 15 14 15 14 15 15 15 15 15 14 15 15 14 15 4 Class Distribution -------------------- 38% | Mutant 32% | Scavenger-Mutant 13% | Scavenger-Gladiator 8% | Gladiator 3% | Commander-Mutant 3% | Sprinter Dominant Class ---------------- Mutant | -10/Materials Mutant | -10/Mines Mutant | -9/Materials Mutant | -9/Mines Mutant | -9/Exiles Gladiator | -8/Mines Scavenger-Mutant | -8/Materials Mutant | -8/Storage Mutant | -8/Recycling Scavenger-Mutant | -6/Factory Scavenger-Mutant | -6/Waste Mutant | -6/Factory Commander-Mutant | -6/Extension Scavenger-Mutant | -6/Cetus Scavenger-Mutant | -6/Archives Scavenger-Mutant | -6/Hub_04(d) Scavenger-Mutant | -5/Factory Scavenger-Gladiator | -5/Upper Caves Scavenger-Gladiator | -5/Upper Caves Scavenger-Gladiator | -5/Warlord Scavenger-Gladiator | -4/Proximity Caves Scavenger-Mutant | -4/Factory Scavenger-Mutant | -3/Research Scavenger-Mutant | -3/Armory Scavenger-Gladiator | -3/Lab Gladiator | -2/Research Scavenger-Mutant | -2/Quarantine Scavenger-Mutant | -2/Protoforge Sprinter | -1/Access Resources | -11 -10 -10 -9 -9 -9 -8 -8 -8 -8 -6 -6 -6 -6 -6 -6 -6 -5 -5 -5 -5 -4 -4 -3 -3 -3 -2 -2 -2 -1 ----------- Run | Yrd Mat Min Mat Min Exi Min Mat Sto Rec Fac Was Fac Ext Cet Arc Hub Fac Upp Upp War Pro Fac Res Arm Lab Res Qua Frg Acc Matter Collected 6896 | 260 204 8 264 30 1077 40 695 505 24 19 354 130 419 105 . 40 30 110 50 . 130 60 300 220 . 187 261 1249 125 Remotely . | . . . . . . . . . . . . . . . . . . . . . . . . . . . . . . Salvage Created 16054 | . 145 2 252 8 197 237 1073 578 . 19 1920 251 1158 145 35 825 57 . 14 . 248 184 234 1149 . 585 1816 2904 2018 Parts 766 | . 17 2 21 1 47 18 55 25 . 2 44 5 39 6 2 46 4 . . . 14 5 16 50 . 49 79 137 82 Haulers Intercepted 11 | . 2 . 1 . . . 3 1 . . . . . . . 2 . . . . . . 1 . . 1 . . . Recyclers Shooed 1 | . . . . . . . 1 . . . . . . . . . . . . . . . . . . . . . . Parts Field Recycled . | . . . . . . . . . . . . . . . . . . . . . . . . . . . . . . Retrieved Matter . | . . . . . . . . . . . . . . . . . . . . . . . . . . . . . . Parts Self-Destructed 12 | . . . . . . . . . . . . . . . . . . . . . 12 . . . . . . . . Prevented 3 | . . . . . . . . . . . . . . . . . . . 3 . . . . . . . . . . Parts Restored 3 | . . . . . . . . . . . . . . . . . . . . . . . . . . . . 2 1 Faulty 3 | . . . . . . . . . . . . . . . . . . . . . . . . . . . . 2 1 Kills | -11 -10 -10 -9 -9 -9 -8 -8 -8 -8 -6 -6 -6 -6 -6 -6 -6 -5 -5 -5 -5 -4 -4 -3 -3 -3 -2 -2 -2 -1 ------- Run | Yrd Mat Min Mat Min Exi Min Mat Sto Rec Fac Was Fac Ext Cet Arc Hub Fac Upp Upp War Pro Fac Res Arm Lab Res Qua Frg Acc Combat Hostiles Destroyed 225 | . 5 3 5 2 4 7 22 13 . . 6 1 9 1 . 3 . . . . 6 . . 18 . 9 19 60 32 Melee 118 | . . . . . . 7 2 . . . 1 . 4 1 . 1 . . . . 6 . . 18 . 9 18 23 28 Guns 15 | . . . . . 1 . . 2 . . 5 1 5 . . . . . . . . . . . . . . 1 . Cannons 43 | . 5 3 5 1 3 . 14 11 . . . . . . . . . . . . . . . . . . . 1 . AOE 48 | . . . . 1 . . 6 . . . . . . . . 2 . . . . . . . . . . . 35 4 Classes Destroyed 32 | . 4 . 5 . 3 2 2 . . . 2 . 1 . . . . . 1 . 2 . . 1 . . 1 7 1 Worker 17 | . 2 . 1 . . . 2 . . 1 . . . . . 8 . . . . . . 1 . . . . . 2 Builder 7 | . . . 2 . . . . . . . . . . . . . 1 . . . . . 1 . . . . 2 1 Tunneler 2 | . . . . . . . . . . . . . 1 . . 1 . . . . . . . . . . . . . Hauler 11 | . 2 . 1 . . . 3 1 . . . . . . . 2 . . . . . . 1 . . 1 . . . Recycler 12 | . . . . . . 1 3 . . . . 1 3 . . 2 . . . . . 1 . . . . . . 1 Minesweeper 2 | . . . . . . . . . . . . . . . . . . . 1 . 1 . . . . . . . . Mechanic 3 | . . . . . . . . . . . . . . . . . . . . . . . . . . . . 3 . Operator 12 | . . . 2 . . . . . . . . . 1 . 1 . . . . . . . 2 . . 2 3 . 1 Drone 15 | . . . . . . . . . . . . . . . . . . . . . 2 . . 1 . . . 5 7 Turret 1 | . . . . . 1 . . . . . . . . . . . . . . . . . . . . . . . . Watcher 18 | . . . 1 . . . 1 . . . . 1 1 2 . 1 1 . . . . 1 1 2 . 2 2 . 2 Swarmer 36 | . 3 3 . 2 . 5 7 . . . . . . . . . . . . . 3 . . 4 . 7 . . 2 Cutter 1 | . . . . . . . . . . . . . . . . . . . . . . . . . . . . . 1 Grunt 69 | . 2 . 3 . . . 8 8 . . . 1 5 . . 1 . . . . 1 . . 5 . . 9 21 5 Brawler 1 | . . . . . . . . . . . . . . . . . . . . . . . . . . . . 1 . Duelist 12 | . . . 1 . . . 1 . . . . . 1 . . . . . . . . . . 2 . . . 2 5 Protector 2 | . . . . . . . . . . . . . . . . . . . . . . . . . . . . 2 . Researcher 2 | . . . . . . . . . . . . . . . . . . . . . . . . . . . . 2 . Sentry 19 | . . . 1 . . . 3 4 . . . . 3 . . 2 . . . . . . . . . . . 4 2 Specialist 2 | . . . . . . . 2 . . . . . . . . . . . . . . . . . . . . . . Hunter 12 | . . . . . . 2 . 1 . . . . . . . . . . . . . . . 1 . . 1 3 4 Programmer 27 | . . . . . . . . . . . . . . . . . . . . . . . . 5 . 2 8 9 3 Heavy 1 | . . . . . . . 1 . . . . . . . . . . . . . . . . . . . . . . Q-Series 3 | . . . . . . . . . . . . . . . . . . . . . . . . . . . . . 3 Compactor 6 | . . . . . . . . . . . 6 . . . . . . . . . . . . . . . . . . Cetus Guard 1 | . . . . . . . . . . . . . . 1 . . . . . . . . . . . . . . . Decapitator 6 | . . . . . . . . . . . . . . . . . . . . . . . . . . . . 6 . Immortal 2 | . . . . . . . . . . . . . . . . . . . . . . . . . . . . 2 . Alpha 7 1 | . . . . . . . . . . . . . . . . . . . . . . . . . . . . 1 . Fortress 1 | . . . . . . . . . . . . . . . . . . . . . . . . . . . 1 . . V-Series 4 | . . . . . . . . . . . . . . . . . . . . . . . . . . . . 4 . Zionite 5 | . . . . . 5 . . . . . . . . . . . . . . . . . . . . . . . . Samaritan 1 | . . . . . . . . . . . . . . . . . . . . . 1 . . . . . . . . Assembled 3 | . . . . . 3 . . . . . . . . . . . . . . . . . . . . . . . . Martyr 2 | . . . . . . . . . . . 2 . . . . . . . . . . . . . . . . . . Guerrilla 1 | . . . . . . . . . . . . . 1 . . . . . . . . . . . . . . . . Best Kill Streak 16 | . 3 3 4 2 3 3 6 6 . 1 3 1 3 1 1 9 2 . 1 . 2 1 2 4 . 4 6 12 16 Combat Bots Only 16 | . 3 3 2 2 3 3 4 6 . . 3 1 2 1 . 2 . . . . 2 . . 4 . 4 6 12 16 Max Kills in Single Turn 9 | . 2 2 2 2 1 1 4 1 . 1 1 1 1 1 1 9 1 . 1 . 1 1 1 1 . 1 1 4 5 Gunslinging . | . . . . . . . . . . . . . . . . . . . . . . . . . . . . . . Exploded 4 | . . . . 1 . . 3 . . . . . . . . 2 . . . . . . . . . . . 4 4 Melee 1 | . . . . . . 1 1 . . . 1 . 1 1 . 1 . . . . 1 . . 1 . 1 1 1 1 Uniques/NPCs Destroyed 4 | . . . . . 4 . . . . . . . . . . . . . . . . . . . . . . . . 8R-AWN (-9/Exiles) EX-DEC (-9/Exiles) EX-HEX (-9/Exiles) EX-BIN (-9/Exiles) Combat | -11 -10 -10 -9 -9 -9 -8 -8 -8 -8 -6 -6 -6 -6 -6 -6 -6 -5 -5 -5 -5 -4 -4 -3 -3 -3 -2 -2 -2 -1 -------- Run | Yrd Mat Min Mat Min Exi Min Mat Sto Rec Fac Was Fac Ext Cet Arc Hub Fac Upp Upp War Pro Fac Res Arm Lab Res Qua Frg Acc Hostile Shots Fired 2041 | . 17 6 19 8 77 54 111 57 . . . . 139 8 . 74 . 1 17 2 12 1 5 121 . 64 132 527 589 Missed 878 | . 2 1 3 . 12 11 37 17 . . . . 57 4 . 39 . . 9 . 7 1 3 45 . 35 47 234 314 Deflected 33 | . . . . . . . . . . . . . . . . . . . . . . . . . . . . 8 25 Hits 1163 | . 15 5 16 8 65 43 74 40 . . . . 82 4 . 35 . 1 8 2 5 . 2 76 . 29 85 293 275 Melee 94 | . . . . . 1 . 7 . . . . . 2 . . . . . 8 . . . . 7 . . . 46 23 Projectile 1069 | . 15 5 16 8 64 43 67 40 . . . . 80 4 . 35 . 1 . 2 5 . 2 69 . 29 85 247 252 AOE 63 | . . . . . . . . . . . . . . . . . . . . . . . . . . . 1 38 24 Critical Strikes 97 | . . . . . 13 . 4 1 . . . . 2 4 . . . . . . 1 . . 5 . . 9 43 15 Actively Blocked 2 | . . . . . . . . . . . . . . . . . . . . . . . . 1 . . . . 1 Damage Taken 25756 | . 143 41 227 74 2092 425 1519 626 19 . . 66 1016 371 . 465 . 19 22 36 85 . . 1719 . 689 2097 7004 7001 Core 3360 | . 28 . 25 16 132 82 191 58 . . . . 150 96 . . . . . . 38 . . 95 . 46 19 1230 1154 Absorbed by Shields 1215 | . . . . . . . . . . . . . 74 13 . . . . . . . . . 90 . . . 562 476 Redirected to Shielding 630 | . . . . . . . . . . . . . 10 . . . . 12 7 . 9 . . 280 . . . 171 141 Ignored by Resistances 620 | . . . . . . . . . . . . . . . . . . . . . . . . . . . . 620 . Regen/Repaired (Parts) 7697 | . . . . . . . 128 . . . . . 255 268 14 44 74 13 . 1 31 . . 186 89 341 1262 1626 3365 Core Remaining (%) 67 | 100 . 88 . . . 36 . . 54 . . . . . . 71 . . . . 96 100 . . 100 . . . 27 Volleys Fired 432 | . 21 5 24 3 62 . 97 35 . . 46 9 55 1 6 3 10 . . 1 . . . . . . 4 49 1 Largest 2 | . 2 2 2 2 2 . 2 2 . . 1 1 1 1 1 1 1 . . 1 . . . . . . 1 1 1 Hottest 300 | . 66 66 66 66 80 . 66 50 . . 30 30 30 . 240 80 80 . . 45 . . . . . . 38 300 60 Shots Fired 541 | . 42 10 48 6 110 . 98 37 . . 45 9 55 1 6 3 10 . . 1 . . . . . . 7 52 1 Gun 166 | . 2 . . . 18 . . 6 . . 45 9 54 . 6 3 10 . . 1 . . . . . . 6 6 . Cannon 324 | . 40 10 48 6 92 . 91 31 . . . . . . . . . . . . . . . . . . 1 5 . Launcher 43 | . . . . . . . 7 . . . . . . . . . . . . . . . . . . . . 35 1 Special 8 | . . . . . . . . . . . . . 1 1 . . . . . . . . . . . . . 6 . Kinetic 465 | . 42 10 48 6 110 . 91 37 . . 45 9 54 . . . . . . . . . . . . . 7 6 . Thermal 24 | . . . . . . . . . . . . . . . 6 3 10 . . . . . . . . . . 5 . Explosive 36 | . . . . . . . . . . . . . . . . . . . . . . . . . . . . 35 1 Electromagnetic 7 | . . . . . . . 7 . . . . . . . . . . . . . . . . . . . . . . Entropic 1 | . . . . . . . . . . . . . . . . . . . . 1 . . . . . . . . . Robot Hit Streak 13 | . 6 3 5 1 9 . 13 9 . . 7 2 12 2 . . . . . . . . . . . . 3 11 5 Robot Miss Streak 5 | . 3 2 4 2 4 . 4 2 . . 5 2 3 . . . . . . . . . . . . . . 3 1 Penetration Max 2 | . . . . . . . . . . . 1 . 2 . . . . . . . . . . . . . . 1 . Secondary Targets . | . . . . . . . . . . . . . . . . . . . . . . . . . . . . . . Shots Hit Robots 810 | . 22 6 23 2 97 13 78 25 . 1 48 8 52 12 1 17 3 . 5 . 14 3 13 72 . 18 91 113 73 Core Hits 507 | . 9 3 14 2 35 5 39 15 . 1 14 4 23 5 . 18 1 . . . 8 2 4 28 . 14 38 187 38 Critical Kills 14 | . . . . . . . . 1 . . 5 1 6 . . . . . . . . . . . . . . 1 . Critical Parts Destroyed 23 | . . . . . 3 . . . . . 1 . 17 . . . . . . . . . . . . . . 2 . Critical Strikes 171 | . . . 1 . 9 1 9 2 . . 17 1 27 . . 2 . . . . . . 1 11 . 1 20 30 39 Destroy 50 | . . . . . 3 . . 1 . . 16 1 26 . . . . . . . . . . . . . . 3 . Blast 11 | . . . 1 . 2 . 7 1 . . . . . . . . . . . . . . . . . . . . . Sever 50 | . . . . . 4 1 2 . . . 1 . 1 . . 2 . . . . . . 1 11 . 1 20 6 . Impale 60 | . . . . . . . . . . . . . . . . . . . . . . . . . . . . 21 39 Melee Attacks 676 | . . . . . 33 22 14 . . 1 22 14 18 11 6 17 4 2 17 . 17 7 15 86 9 36 105 123 97 Kinetic 4 | . . . . . . . . . . . . . . . . . . . . . . . . . . . 4 . . Impact . | . . . . . . . . . . . . . . . . . . . . . . . . . . . . . . Slashing 507 | . . . . . 33 22 14 . . 1 22 14 18 11 6 17 4 2 17 . 17 7 15 86 8 32 101 60 . Piercing 165 | . . . . . . . . . . . . . . . . . . . . . . . . . 1 4 . 63 97 Sneak Attacks 55 | . . . . . 2 1 3 . . 1 5 1 4 . 1 7 1 . 1 . 2 1 4 5 . 3 3 5 5 Combat Hostiles 8 | . . . . . . . . . . . . . . . . . . . . . . . . 3 . 1 2 . 2 Follow-up Attacks 17 | . . . . . . . . . . . . . . . . . . . 1 . 1 . . . . . . 9 6 Damage Inflicted 46542 | . 536 141 565 102 2994 747 2395 1079 10 125 1457 243 1880 477 107 2158 197 . 285 . 724 187 967 3539 . 1164 4610 14652 5201 Guns 2142 | . . . . . 274 . . 91 . . 621 61 843 . . . . . . . . . . . . . 31 221 . Cannons 5825 | . 536 141 565 46 1325 . 1586 984 . . . . . . . . . . . . . . . . . . . 642 . Explosions 10910 | . . . . 56 . . 284 . . . . . . . . 1126 . . . . . . . . . . . 8811 633 Melee 27563 | . . . . . 1395 747 525 . . 125 836 182 1037 477 107 1032 197 . 285 . 724 187 967 3539 . 1164 4579 4966 4492 Ramming 102 | . . . . . . . . 4 10 . . . . . . . . . . . . . . . . . . 12 76 Kinetic 7428 | . 536 141 565 46 1599 . 1586 1075 . . 621 61 843 . . . . . . . . . . . . . 134 221 . Thermal 771 | . . . . 56 . . 73 . . . . . . . . . . . . . . . . . . . . 642 . Explosive 9444 | . . . . . . . . . . . . . . . . . . . . . . . . . . . . 8811 633 Electromagnetic 1337 | . . . . . . . 211 . . . . . . . . 1126 . . . . . . . . . . . . . Impact . | . . . . . . . . . . . . . . . . . . . . . . . . . . . . . . Slashing 20030 | . . . . . 1395 747 525 . . 125 836 182 1037 477 107 1032 197 . 285 . 724 187 967 3539 . 1164 4476 2028 . Piercing 7430 | . . . . . . . . . . . . . . . . . . . . . . . . . . . . 2938 4492 Highest Corruption 35 | . . . . . . . . 4 4 4 4 4 . . . 7 . . . . . . . 6 6 1 5 35 2 Average Corruption 6 | . . . . . . . . 1 4 4 4 2 . . . 5 . . . . . . . 5 6 1 2 17 1 Corruption Purged 9 | . . . . . . . . . . . . 4 . . . . . . . . . . . . . . 5 . . Corruption Blocked . | . . . . . . . . . . . . . . . . . . . . . . . . . . . . . . Effects 143 | . . . . . . . . 5 8 2 10 1 . . . 5 . . . . . . . 1 6 5 22 73 5 Message Errors 35 | . . . . . . . . 3 4 . 2 . . . . 1 . . . . . . . . 1 3 6 13 2 Matter Fused 32 | . . . . . . . . 1 . 2 2 . . . . . . . . . . . . 1 3 1 6 14 2 Heat Flow Errors 7 | . . . . . . . . 1 . . 1 . . . . . . . . . . . . . 1 . 1 3 . Energy Discharges 17 | . . . . . . . . . 1 . 3 1 . . . 2 . . . . . . . . . . 1 8 1 Parts Fused 4 | . . . . . . . . . 1 . . . . . . . . . . . . . . . . . 1 2 . Data Loss (minor) 17 | . . . . . . . . . 2 . . . . . . 1 . . . . . . . . . . 3 11 . Data Loss (major) 8 | . . . . . . . . . . . 1 . . . . . . . . . . . . . 1 1 1 4 . Misfires 6 | . . . . . . . . . . . . . . . . . . . . . . . . . . . 3 3 . Alerts 1 | . . . . . . . . . . . . . . . . 1 . . . . . . . . . . . . . Misdirections 15 | . . . . . . . . . . . . . . . . . . . . . . . . . . . . 15 . Weapon Failures 1 | . . . . . . . . . . . 1 . . . . . . . . . . . . . . . . . . Overload Shots 1 | . . . . . . . . . . . . . . . 1 . . . . . . . . . . . . . . Overflow Damage 3870 | . 6 4 9 . 240 136 134 14 . . 57 20 223 5 62 160 43 . 98 . 24 . 209 134 . 5 218 631 1438 Projectiles 240 | . 6 4 9 . 3 . 2 14 . . . . . . . . . . . . . . . . . . . 202 . Explosions 220 | . . . . . . . . . . . . . . . . 47 . . . . . . . . . . . 107 66 Melee 3410 | . . . . . 237 136 132 . . . 57 20 223 5 62 113 43 . 98 . 24 . 209 134 . 5 218 322 1372 Knockbacks 50 | . 3 3 6 1 14 . 20 3 . . . . . . . . . . . . . . . . . . . . . Impact . | . . . . . . . . . . . . . . . . . . . . . . . . . . . . . . Kinetic 47 | . 3 2 6 1 14 . 18 3 . . . . . . . . . . . . . . . . . . . . . Secondary 3 | . . 1 . . . . 2 . . . . . . . . . . . . . . . . . . . . . . Self-Inflicted Damage 445 | . . . . 10 . . 5 2 5 . . . . . . 97 . . . . . . . . . . . 202 124 Shots 13 | . . . . 1 . . 1 . . . . . . . . 1 . . . . . . . . . . . 7 3 Rammed 4 | . . . . . . . . 1 1 . . . . . . . . . . . . . . . . . . 1 1 Targets Rammed 4 | . . . . . . . . 1 1 . . . . . . . . . . . . . . . . . . 1 1 Kicked . | . . . . . . . . . . . . . . . . . . . . . . . . . . . . . . Crushed . | . . . . . . . . . . . . . . . . . . . . . . . . . . . . . . Highest Temperature 579 | . 174 105 128 84 579 . 14 240 . . 208 . 30 . 164 68 90 3 4 17 . . 52 8 145 123 349 271 316 Average Temperature 61 | . 67 54 57 42 179 . 5 30 . . 94 . 8 . 40 33 37 3 4 9 . . 20 4 87 35 57 89 83 Received Heat Transfer 2961 | . 48 . 102 . 87 . 324 198 9 . . 12 399 18 . 150 . 9 . 18 . . . 121 . 9 270 359 828 Effects 14 | . . . . . 14 . . . . . . . . . . . . . . . . . . . . . . . . Shutdowns 2 | . . . . . 2 . . . . . . . . . . . . . . . . . . . . . . . . Energy Bleed 1 | . . . . . 1 . . . . . . . . . . . . . . . . . . . . . . . . Interference 2 | . . . . . 2 . . . . . . . . . . . . . . . . . . . . . . . . Short Circuit 2 | . . . . . 2 . . . . . . . . . . . . . . . . . . . . . . . . Damage (minor) 1 | . . . . . 1 . . . . . . . . . . . . . . . . . . . . . . . . Damage (major) 5 | . . . . . 5 . . . . . . . . . . . . . . . . . . . . . . . . Damage (core) 1 | . . . . . 1 . . . . . . . . . . . . . . . . . . . . . . . . Siege Activations . | . . . . . . . . . . . . . . . . . . . . . . . . . . . . . . Martial Activations . | . . . . . . . . . . . . . . . . . . . . . . . . . . . . . . Shielding Activations . | . . . . . . . . . . . . . . . . . . . . . . . . . . . . . . Robots Disrupted . | . . . . . . . . . . . . . . . . . . . . . . . . . . . . . . Combat Hostiles . | . . . . . . . . . . . . . . . . . . . . . . . . . . . . . . Robots Corrupted . | . . . . . . . . . . . . . . . . . . . . . . . . . . . . . . Combat Hostiles . | . . . . . . . . . . . . . . . . . . . . . . . . . . . . . . Parts Fried 5 | . . . . . . . . . . . . . . 1 . 2 . . 1 . . . . . . 1 . . . Impact Corruptions . | . . . . . . . . . . . . . . . . . . . . . . . . . . . . . . Robots Melted . | . . . . . . . . . . . . . . . . . . . . . . . . . . . . . . Combat Hostiles . | . . . . . . . . . . . . . . . . . . . . . . . . . . . . . . Parts Melted 1 | . . . . . . . . . . . . . . . . . . . . . . . . . . . . . 1 Heat Transferred 187 | . . . . 50 . . 100 . . . . . . . . . . . . . . . . . . . . 37 . Parts Sabotaged 5 | . . . . . . . . . . . . . . . . . . . . . . . . . . . . . 5 Parts Stolen 5 | . . . . . . . . . . . . . . . . . . . 5 . . . . . . . . . . Parts Stripped 18 | . . . . . . . . . . . . . . . . . . . . . . . . . . . 18 . . Power Chain Reactions 3 | . . . . . . . 3 . . . . . . . . . . . . . . . . . . . . . . Alert | -11 -10 -10 -9 -9 -9 -8 -8 -8 -8 -6 -6 -6 -6 -6 -6 -6 -5 -5 -5 -5 -4 -4 -3 -3 -3 -2 -2 -2 -1 ------- Run | Yrd Mat Min Mat Min Exi Min Mat Sto Rec Fac Was Fac Ext Cet Arc Hub Fac Upp Upp War Pro Fac Res Arm Lab Res Qua Frg Acc Maximum Alert Level 5 | . . . . . . . 1 1 . 1 . 3 3 1 . 3 1 . . . . 1 . 1 . 2 2 5 5 Low Security (%) 55 | 100 100 100 100 100 . 100 99 64 100 . 100 28 . 1 100 85 . . . . . 86 100 29 . 25 47 . . Level 1 17 | . . . . . . . . 35 . 100 . 6 3 98 . . 100 . . . . 13 . 70 . 47 16 14 . Level 2 13 | . . . . . . . . . . . . 30 93 . . 8 . . . . . . . . . 26 35 6 . Level 3 3 | . . . . . . . . . . . . 33 2 . . 5 . . . . . . . . . . . 15 . Level 4 6 | . . . . . . . . . . . . . . . . . . . . . . . . . . . . 46 56 Level 5 3 | . . . . . . . . . . . . . . . . . . . . . . . . . . . . 18 38 High Security . | . . . . . . . . . . . . . . . . . . . . . . . . . . . . . 5 Max Security . | . . . . . . . . . . . . . . . . . . . . . . . . . . . . . . Peak Influence 2473 | . 69 60 111 94 . 75 202 289 50 251 72 776 764 368 115 713 344 . . . . 218 86 394 . 479 636 2124 2473 Initial 1271 | . . 22 3 . . . . 81 39 251 72 . 360 358 93 34 344 . . . . 181 86 . . . 174 323 1271 Average 353 | . 17 12 35 7 . 20 82 179 17 231 12 462 565 296 104 146 294 . . . . 179 36 249 . 283 329 1212 1727 Influence Increases 13437 | . 148 70 283 94 . 215 701 408 150 255 . 1169 1297 223 25 799 47 60 72 . 215 244 195 833 . 721 931 2654 1628 Destroy 0b10 Robot/C 5540 | . 100 60 180 40 . 140 440 260 . . . 420 660 140 . 60 . . 20 . 80 . . 380 . 180 380 1400 600 Destroy 0b10 Robot/NC 535 | . 20 . 40 . . 5 45 5 . 5 . 35 45 10 5 70 10 . 5 . 15 10 30 15 . 25 25 75 40 Destroy Leader 920 | . 14 10 46 10 . 40 118 72 . . . 94 62 . . 26 2 . . . . 2 4 64 . 46 64 152 94 Allied During Kill 1302 | . . . 7 . . . . . . . . 455 475 46 2 . . . 2 . . . . 4 . . . 311 . Successful Hack 268 | . 11 . 5 . . . 23 . . . . 7 33 . . 14 14 . . . . 14 67 . . 5 48 . 27 Select Force Hacks 150 | . . . . . . . . . 150 . . . . . . . . . . . . . . . . . . . . Disable Machine 615 | . . . . 15 . . 45 45 . . . 45 15 . 15 150 . . . . . . . 15 . . 120 150 . Anti-Garrison Action 300 | . . . . . . . . . . . . . . . . 150 . . . . . . . . . . . 150 . Destroy Structure 602 | . 3 . 5 14 . . 15 11 . . . 53 7 27 3 164 6 . . . . 8 4 10 . 30 24 161 57 Advance Influence 400 | . . . . . . . . . . 250 . . . . . . . . . . . 150 . . . . . . . Partial Spotted 390 | . . . . . . . . 15 . . . 60 . . . 15 15 . . . . 45 30 . . 105 . 45 60 Lose Combat Pursuer 2415 | . . . . 15 . 30 15 . . . . . . . . 150 . 60 45 . 120 15 60 345 . 330 270 210 750 Influence Decreases 11004 | . 91 117 293 94 . 215 507 499 249 53 206 432 1393 631 160 194 509 200 173 . 165 129 360 530 303 410 667 1110 1314 Entered New Map 3327 | . . 35 7 . . . . 113 64 3 134 . 377 283 140 64 359 90 20 . . 19 79 . 303 . 137 252 848 Time Decay 5957 | . 91 82 266 94 . 195 417 356 185 50 72 342 446 198 20 120 150 110 143 . 165 110 281 340 . 390 510 538 286 Lost Part 600 | . . . . . . 20 90 30 . . . 10 10 10 . 10 . . 10 . . . . 50 . 20 20 140 180 Lost Ally 1120 | . . . 20 . . . . . . . . 80 560 140 . . . . . . . . . 140 . . . 180 . Squads Dispatched 80 | . . . 3 1 . . 3 3 . 1 . 7 6 . . 5 3 . . . . 1 7 2 . 4 8 15 11 Investigation 14 | . . . 1 1 . . 1 1 . 1 . 2 2 . . 1 2 . . . . . 2 . . . . . . Extermination 16 | . . . . . . . . . . . . 2 . . . . 1 . . . . 1 . 2 . . 4 3 3 Reinforcement 30 | . . . 2 . . . 2 1 . . . 3 2 . . 1 . . . . . . 5 . . 4 2 4 4 Assault 18 | . . . . . . . . . . . . . 2 . . 2 . . . . . . . . . . 2 8 4 Garrison 2 | . . . . . . . . 1 . . . . . . . 1 . . . . . . . . . . . . . Intercept . | . . . . . . . . . . . . . . . . . . . . . . . . . . . . . . Searches Triggered . | . . . . . . . . . . . . . . . . . . . . . . . . . . . . . . Unchained Authorized 1 | . . . . . . . . . . . . . . . . . . . . . . . . . . . . . 1 Construction Impeded 2 | . . . . . . . . . . . . . 1 . . 1 . . . . . . . . . . . . . Haulers Reinforced 4 | . . . . . . . . . . . . . . . . . . . . . . . 2 . . 2 . . . Active Scanning Responses . | . . . . . . . . . . . . . . . . . . . . . . . . . . . . . . Cargo Convoy Interrupts . | . . . . . . . . . . . . . . . . . . . . . . . . . . . . . . Stealth | -11 -10 -10 -9 -9 -9 -8 -8 -8 -8 -6 -6 -6 -6 -6 -6 -6 -5 -5 -5 -5 -4 -4 -3 -3 -3 -2 -2 -2 -1 --------- Run | Yrd Mat Min Mat Min Exi Min Mat Sto Rec Fac Was Fac Ext Cet Arc Hub Fac Upp Upp War Pro Fac Res Arm Lab Res Qua Frg Acc Distress Signals 39 | . 1 . 2 . . . 2 1 . . . 2 2 2 . 1 . . . . . . 5 3 . 7 2 2 7 Communications Jammed 57 | . . . . . . . . . . . . . . . . 21 . . . . . . . 36 . . . . . Distress Signals 57 | . . . . . . . . . . . . . . . . 21 . . . . . . . 36 . . . . . Times Spotted 624 | . 7 3 18 3 43 10 34 23 3 . 6 12 37 10 2 11 2 1 8 9 9 2 19 42 . 48 40 111 111 Peak Tracking Total 25 | . 2 3 4 3 9 3 5 6 3 . 4 3 9 5 3 5 1 4 4 14 4 1 6 10 . 12 7 18 25 Tactical Retreats 86 | . . . . 1 22 1 1 . . . 1 . . . . 4 . 1 3 . 3 1 1 7 . 9 10 7 14 Traps | -11 -10 -10 -9 -9 -9 -8 -8 -8 -8 -6 -6 -6 -6 -6 -6 -6 -5 -5 -5 -5 -4 -4 -3 -3 -3 -2 -2 -2 -1 ------- Run | Yrd Mat Min Mat Min Exi Min Mat Sto Rec Fac Was Fac Ext Cet Arc Hub Fac Upp Upp War Pro Fac Res Arm Lab Res Qua Frg Acc Traps Triggered 15 | . . . 1 . . . . 4 . 2 . . 2 . . 2 . . . . . . . 1 . . . 2 1 Indirectly 1 | . . . . . . . . . . . . . . . . 1 . . . . . . . . . . . . . Trap Hack Attempts . | . . . . . . . . . . . . . . . . . . . . . . . . . . . . . . Triggered . | . . . . . . . . . . . . . . . . . . . . . . . . . . . . . . Disarmed . | . . . . . . . . . . . . . . . . . . . . . . . . . . . . . . Reprogrammed . | . . . . . . . . . . . . . . . . . . . . . . . . . . . . . . Reused 2 | . . . . . . . . . . . . . . . . . . . . 2 . . . . . . . . . Traps Extracted . | . . . . . . . . . . . . . . . . . . . . . . . . . . . . . . Installed 4 | . . . . . . . . . . . . . . . . . . . . 4 . . . . . . . . . Triggered 2 | . . . . . . . . . . . . . . . . . . . . 2 . . . . . . . . . Most Traps Carried 4 | . . . . . . . . . . . . . . . . . . . 4 4 . . . . . . . . . Machines | -11 -10 -10 -9 -9 -9 -8 -8 -8 -8 -6 -6 -6 -6 -6 -6 -6 -5 -5 -5 -5 -4 -4 -3 -3 -3 -2 -2 -2 -1 ---------- Run | Yrd Mat Min Mat Min Exi Min Mat Sto Rec Fac Was Fac Ext Cet Arc Hub Fac Upp Upp War Pro Fac Res Arm Lab Res Qua Frg Acc Machines Disabled 57 | . . . . 1 8 . 3 3 . . . 3 1 . 1 11 . . 1 1 . . . 1 3 . 8 12 . Max in Single Turn 11 | . . . . 1 1 . 1 1 . . . . . . 1 11 . . 1 1 . . . 1 1 . 1 1 . Garrison Access 9 | . . . . . . . . . . . . 1 . . . 1 . . . . . 1 1 . . 2 1 1 1 Network Hub 2 | . . . . . . . . . . . . . . . . 2 . . . . . . . . . . . . . Machines Repaired . | . . . . . . . . . . . . . . . . . . . . . . . . . . . . . . Machines Dismantled . | . . . . . . . . . . . . . . . . . . . . . . . . . . . . . . Machines Sabotaged . | . . . . . . . . . . . . . . . . . . . . . . . . . . . . . . Overloaded Fab Kills . | . . . . . . . . . . . . . . . . . . . . . . . . . . . . . . Hacking | -11 -10 -10 -9 -9 -9 -8 -8 -8 -8 -6 -6 -6 -6 -6 -6 -6 -5 -5 -5 -5 -4 -4 -3 -3 -3 -2 -2 -2 -1 --------- Run | Yrd Mat Min Mat Min Exi Min Mat Sto Rec Fac Was Fac Ext Cet Arc Hub Fac Upp Upp War Pro Fac Res Arm Lab Res Qua Frg Acc Machines Accessed 74 | . 3 . 1 1 1 . 4 5 5 3 . 7 9 . . 3 3 . . 3 . 2 6 1 . 2 6 3 6 Terminals 38 | . 3 . 1 . . . 3 2 . 1 . 3 9 . . 2 . . . . . 1 3 . . 1 4 2 3 Fabricators 3 | . . . . . . . . . . 1 . 1 . . . . . . . . . . . 1 . . . . . Repair Stations 5 | . . . . . . . 1 2 . . . . . . . . 2 . . . . . . . . . . . . Recycling Units 5 | . . . . . . . . . 5 . . . . . . . . . . . . . . . . . . . . Scanalyzers 5 | . . . . . . . . . . . . 1 . . . . 1 . . . . . 2 . . . 1 . . Garrison Access 13 | . . . . . . . . 1 . 1 . 2 . . . 1 . . . . . 1 1 . . 1 1 1 3 Total Hacks 163 | . 4 . 3 1 1 . 14 13 7 7 . 11 16 . . 4 22 . . 6 . 3 16 1 . 3 13 7 11 Successful 64 | . 3 . 2 1 1 . 9 1 5 . . 3 8 . . 1 8 . . 6 . 2 6 1 . 1 3 1 2 Failed 97 | . 1 . 1 . . . 5 12 2 7 . 8 8 . . 3 14 . . . . 1 9 . . 2 9 6 9 Catastrophic 31 | . . . 1 . . . . 4 . 3 . 3 2 . . 2 6 . . . . 1 2 . . 2 1 1 3 Database Lockouts 2 | . . . . . . . . . . . . . . . . . . . . . . . 1 . . . 1 . . Manual 23 | . 2 . 1 . 1 . 4 . 7 2 . 1 . 1 . 1 . . . . . 1 . . . . . . 2 Terminals 71 | . 4 . 3 . . . 8 6 . 1 . 5 16 . . 3 . . . . . 2 6 . . 1 6 3 7 Fabricators 6 | . . . . . . . . . . 4 . 1 . . . . . . . . . . . 1 . . . . . Repair Stations 22 | . . . . . . . 6 5 . . . . . . . . 11 . . . . . . . . . . . . Recycling Units 7 | . . . . . . . . . 7 . . . . . . . . . . . . . . . . . . . . Scanalyzers 24 | . . . . . . . . . . . . 2 . . . . 11 . . . . . 6 . . . 5 . . Garrison Access 25 | . . . . . . . . 2 . 2 . 3 . . . 1 . . . . . 1 4 . . 2 2 4 4 Terminal Hacks 30 | . 1 . 1 1 1 . 2 . . . . 1 8 . . 1 . . . 6 . 1 3 . . 1 1 1 1 Robot Analysis 2 | . . . 1 . . . 1 . . . . . . . . . . . . . . . . . . . . . . Prototype ID Bank 5 | . . . . . . . . . . . . . . . . . . . . 4 . 1 . . . . . . . Open Door 10 | . . . . 1 . . . . . . . . 6 . . . . . . 2 . . . . . . . . 1 Open DSF 1 | . . . . . . . . . . . . . . . . . . . . . . . 1 . . . . . . Level Access Points 1 | . . . . . . . . . . . . . . . . . . . . . . . 1 . . . . . . Branch Access Points 5 | . 1 . . . . . 1 . . . . 1 . . . . . . . . . . 1 . . 1 . . . Locate Traps 2 | . . . . . . . . . . . . . 2 . . . . . . . . . . . . . . . . Zone Layout 2 | . . . . . . . . . . . . . . . . 1 . . . . . . . . . . 1 . . Proto ID Catalog 2 | . . . . . 1 . . . . . . . . . . . . . . . . . . . . . . 1 . Fabricator Hacks 2 | . . . . . . . . . . . . 1 . . . . . . . . . . . 1 . . . . . Network Status 2 | . . . . . . . . . . . . 1 . . . . . . . . . . . 1 . . . . . Repair Station Hacks 7 | . . . . . . . 5 1 . . . . . . . . 1 . . . . . . . . . . . . Scan Component 5 | . . . . . . . 3 1 . . . . . . . . 1 . . . . . . . . . . . . Repair 2 | . . . . . . . 2 . . . . . . . . . . . . . . . . . . . . . . Recycling Unit Hacks . | . . . . . . . . . . . . . . . . . . . . . . . . . . . . . . Scanalyzer 10 | . . . . . . . . . . . . . . . . . 7 . . . . . 2 . . . 1 . . Insert Component 2 | . . . . . . . . . . . . . . . . . 2 . . . . . . . . . . . . Analyze 2 | . . . . . . . . . . . . . . . . . 2 . . . . . . . . . . . . Retrieve Study 6 | . . . . . . . . . . . . . . . . . 3 . . . . . 2 . . . 1 . . Garrison Access Hacks 5 | . . . . . . . . . . . . 1 . . . . . . . . . 1 1 . . . 1 . 1 Seal Access 5 | . . . . . . . . . . . . 1 . . . . . . . . . 1 1 . . . 1 . 1 Unauthorized Hacks 10 | . 2 . 1 . . . 2 . 5 . . . . . . . . . . . . . . . . . . . . Terminals 5 | . 2 . 1 . . . 2 . . . . . . . . . . . . . . . . . . . . . . Operators 1 | . . . . . . . 1 . . . . . . . . . . . . . . . . . . . . . . Skim 4 | . 2 . 1 . . . 1 . . . . . . . . . . . . . . . . . . . . . . Fabricators . | . . . . . . . . . . . . . . . . . . . . . . . . . . . . . . Repair Stations . | . . . . . . . . . . . . . . . . . . . . . . . . . . . . . . Recycling Units 5 | . . . . . . . . . 5 . . . . . . . . . . . . . . . . . . . . Tunnel 5 | . . . . . . . . . 5 . . . . . . . . . . . . . . . . . . . . Scanalyzers . | . . . . . . . . . . . . . . . . . . . . . . . . . . . . . . Garrison Access . | . . . . . . . . . . . . . . . . . . . . . . . . . . . . . . Data Cores Recovered 6 | . . . 1 . . . . . . . . 1 . . . . . . . . . . 1 . . 1 1 . 1 Used 4 | . . . . . . . . . . . . 1 . . . . . . . . . . 1 . . 1 1 . . Hacking Detections 47 | . 2 . . . . . 4 5 . 3 . 4 6 . . 3 3 . . . . 1 3 . . 1 6 2 4 Full Trace Events 10 | . . . . . . . 1 1 . 1 . 2 2 . . 1 2 . . . . . . . . . . . . Feedback Events 1 | . . . . . . . . 1 . . . . . . . . . . . . . . . . . . . . . Corruption 1 | . . . . . . . . 1 . . . . . . . . . . . . . . . . . . . . . Feedback Blocked . | . . . . . . . . . . . . . . . . . . . . . . . . . . . . . . Robot Schematics Acquired 1 | . . . . . . . . . . . . . . . . . . . . . . . . . . . . 1 . Robots Built . | . . . . . . . . . . . . . . . . . . . . . . . . . . . . . . Authchips . | . . . . . . . . . . . . . . . . . . . . . . . . . . . . . . Time . | . . . . . . . . . . . . . . . . . . . . . . . . . . . . . . Total Robot Build Rating . | . . . . . . . . . . . . . . . . . . . . . . . . . . . . . . Part Schematics Acquired 3 | . . . . . . . . . . . . . . . . . . . . . . . . . . . . 3 . Parts Built . | . . . . . . . . . . . . . . . . . . . . . . . . . . . . . . Authchips . | . . . . . . . . . . . . . . . . . . . . . . . . . . . . . . Time . | . . . . . . . . . . . . . . . . . . . . . . . . . . . . . . Total Part Build Rating . | . . . . . . . . . . . . . . . . . . . . . . . . . . . . . . Part Studies Acquired 6 | . . . . . . . . . . . . . . . . . 3 . . . . . 2 . . . 1 . . Parts Repaired 2 | . . . . . . . 2 . . . . . . . . . . . . . . . . . . . . . . Time 93 | . . . . . . . 93 . . . . . . . . . . . . . . . . . . . . . . Parts Recycled . | . . . . . . . . . . . . . . . . . . . . . . . . . . . . . . Recycled Matter . | . . . . . . . . . . . . . . . . . . . . . . . . . . . . . . Retrieved Matter . | . . . . . . . . . . . . . . . . . . . . . . . . . . . . . . Retrieved Components . | . . . . . . . . . . . . . . . . . . . . . . . . . . . . . . Parts Scanalyzed 1 | . . . . . . . . . . . . . . . . . 1 . . . . . . . . . . . . Part Schematics Acquired . | . . . . . . . . . . . . . . . . . . . . . . . . . . . . . . Parts Damaged 1 | . . . . . . . . . . . . . . . . . 1 . . . . . . . . . . . . Bothacking | -11 -10 -10 -9 -9 -9 -8 -8 -8 -8 -6 -6 -6 -6 -6 -6 -6 -5 -5 -5 -5 -4 -4 -3 -3 -3 -2 -2 -2 -1 ------------ Run | Yrd Mat Min Mat Min Exi Min Mat Sto Rec Fac Was Fac Ext Cet Arc Hub Fac Upp Upp War Pro Fac Res Arm Lab Res Qua Frg Acc Used RIF Installer . | . . . . . . . . . . . . . . . . . . . . . . . . . . . . . . Robots Hacked . | . . . . . . . . . . . . . . . . . . . . . . . . . . . . . . Non-combat . | . . . . . . . . . . . . . . . . . . . . . . . . . . . . . . Combat . | . . . . . . . . . . . . . . . . . . . . . . . . . . . . . . Robot Hacks Applied . | . . . . . . . . . . . . . . . . . . . . . . . . . . . . . . Relay Couplers Released 5 | . . . . . . . . . . . . . . . . 2 . . . . . . . . . 2 . 1 . Machine Destruction 5 | . . . . . . . . . . . . . . . . 2 . . . . . . . . . 2 . 1 . Fabnet Peak Effective % . | . . . . . . . . . . . . . . . . . . . . . . . . . . . . . . Robots Rewired 26 | . . . . . . . . . . . . . 15 . . . . . . . . . . 11 . . . . . Allies Hacked 1 | . . . . . . . . . . . . . . . . . . . . . . . . 1 . . . . . Hacks Repelled . | . . . . . . . . . . . . . . . . . . . . . . . . . . . . . . Allies | -11 -10 -10 -9 -9 -9 -8 -8 -8 -8 -6 -6 -6 -6 -6 -6 -6 -5 -5 -5 -5 -4 -4 -3 -3 -3 -2 -2 -2 -1 -------- Run | Yrd Mat Min Mat Min Exi Min Mat Sto Rec Fac Was Fac Ext Cet Arc Hub Fac Upp Upp War Pro Fac Res Arm Lab Res Qua Frg Acc Total Allies 81 | . . 1 . 5 . . . . . . 18 . 25 6 . . . . . . . . . 11 . . . 15 . Largest Group 27 | . . 1 1 5 5 . . . . . 18 16 27 6 2 . . . . . . . . 5 . . . 7 . Highest-Rated Group 889 | . . 31 31 82 82 . . . . . 656 556 889 544 185 . . . . . . . . 256 . . . 636 . Highest-Rated Ally 264 | . . 31 31 31 31 . . . . . 50 46 159 159 96 . . . . . . . . 64 . . . 264 . Total Orders 1 | . . . . . 1 . . . . . . . . . . . . . . . . . . . . . . . . STAY 1 | . . . . . 1 . . . . . . . . . . . . . . . . . . . . . . . . Ally Attacks 621 | . . . 20 . 21 . . . . . . 138 213 66 5 . . . 12 . . . . 26 . . . 120 . Total Damage 16523 | . . . 250 . 142 . . . . . . 2938 4108 2489 298 . . . 515 . . . . 776 . . . 5007 . Kills 90 | . . . 5 . 2 . . . . . . 25 28 6 . . . . 4 . . . . 2 . . . 18 . Allies Corrupted 5 | . . . . . . . . . . . . 1 1 . . . . . . . . . . 3 . . . . . Allies Melted 4 | . . . . . . . . . . . . . . . . . . . . . . . . . . 3 . 1 . Turrets Deployed 1 | . . . . . . . . . . . . . . . . . . . 1 . . . . . . . . . . Field Lobotomies 7 | . . . . . . . . . . . . . 1 1 . . . . . . . . . . . . . 5 . Intel | -11 -10 -10 -9 -9 -9 -8 -8 -8 -8 -6 -6 -6 -6 -6 -6 -6 -5 -5 -5 -5 -4 -4 -3 -3 -3 -2 -2 -2 -1 ------- Run | Yrd Mat Min Mat Min Exi Min Mat Sto Rec Fac Was Fac Ext Cet Arc Hub Fac Upp Upp War Pro Fac Res Arm Lab Res Qua Frg Acc Active Infowar (turns) 8375 | . . . . . . . . . . 103 486 839 1103 320 . 221 173 238 419 349 497 226 738 662 213 167 979 162 480 Sensors 7444 | . . . . . . . . . . 103 486 839 1103 320 . . 173 238 419 349 497 226 738 662 213 167 811 100 . IFF 480 | . . . . . . . . . . . . . . . . . . . . . . . . . . . . . 480 Cloaking 330 | . . . . . . . . . . . . . . . . . . . . . . . . . . . 168 162 . Jamming 569 | . . . . . . . . . . . . . . . . 221 6 . . . . . . 342 . . . . . Robot Analysis Total 2 | . . . 1 . . . 1 . . . . . . . . . . . . . . . . . . . . . . Derelict Logs Recovered 6 | . . 2 . . . . . . . . . . . . . . . 1 . . 3 . . . . . . . . Drone Launches 4 | . . . . . . . . . . . . . . . . . . . . . . . . . . . . 4 . Drone Recoveries . | . . . . . . . . . . . . . . . . . . . . . . . . . . . . . . Exploration | -11 -10 -10 -9 -9 -9 -8 -8 -8 -8 -6 -6 -6 -6 -6 -6 -6 -5 -5 -5 -5 -4 -4 -3 -3 -3 -2 -2 -2 -1 ------------- Run | Yrd Mat Min Mat Min Exi Min Mat Sto Rec Fac Was Fac Ext Cet Arc Hub Fac Upp Upp War Pro Fac Res Arm Lab Res Qua Frg Acc Turns Passed 21479 | 70 550 375 685 1209 3800 670 1245 810 429 110 486 839 1115 418 46 246 305 238 419 349 497 226 738 795 213 1021 1382 1521 672 Spaces Moved 18856 | 49 207 217 289 272 1479 388 674 513 380 210 535 1198 801 353 36 352 305 444 676 644 626 452 1122 747 113 1581 1278 1613 1302 Core 76 | 15 . . . . 53 . . . . . . . . . . . . . . . . . . . . . . . 8 Treads 1695 | 34 207 217 289 272 676 . . . . . . . . . . . . . . . . . . . . . . . . Legs 1919 | . . . . . 750 388 674 105 . . . . . . . . . . . . . . . . . . . . 2 Wheels . | . . . . . . . . . . . . . . . . . . . . . . . . . . . . . . Hover 15166 | . . . . . . . . 408 380 210 535 1198 801 353 36 352 305 444 676 644 626 452 1122 747 113 1581 1278 1613 1292 Flight . | . . . . . . . . . . . . . . . . . . . . . . . . . . . . . . Fastest Speed 27 | 50 160 160 160 240 133 126 117 48 100 35 35 35 43 43 43 42 42 44 44 44 44 44 27 36 41 38 38 28 28 Average Speed 71 | 126 160 160 202 240 229 143 124 109 104 35 35 38 43 43 43 48 47 48 44 44 44 44 42 44 41 38 39 42 28 Slowest Speed 1250 | 160 160 160 240 240 1250 190 130 360 105 35 35 43 43 43 43 101 59 59 44 110 44 44 102 48 41 41 41 157 400 Overloaded Moves . | . . . . . . . . . . . . . . . . . . . . . . . . . . . . . . Propulsion Burnouts . | . . . . . . . . . . . . . . . . . . . . . . . . . . . . . . Robots Hopped 1 | . . . . . . . . . . . . . . . . . . . 1 . . . . . . . . . . Potential Cave-ins 2 | . . . . . . . . . . . . . . . . . 2 . . . . . . . . . . . . Cave-ins Triggered . | . . . . . . . . . . . . . . . . . . . . . . . . . . . . . . Teleports 1 | . . . . . . . . . . . . . . . . . . . . . . . . . . . . 1 . Exploration Rate (%) 51 | 3 30 43 34 43 90 78 53 84 63 6 96 34 86 69 53 36 9 62 64 80 65 15 28 40 72 47 84 52 39 Regions Visited 29 Branch Regions 18 Pre-discovered Areas 7 | . . 1 . . . . . . 5 . . . . . . . . . . . 1 . . . . . . . . Known Exits Taken 23 | . 1 . 1 . 1 . 1 1 1 . . 1 1 1 1 1 1 1 1 1 1 1 1 1 1 1 1 1 . Unknown Exits Taken 4 | 1 . 1 . 1 . 1 . . . . . . . . . . . . . . . . . . . . . . . Scrap Searched 12 | . . . . 1 . 1 . . . . . . . . . . . 4 4 . 2 . . . . . . . . Spaces Dug 71 | . . . 2 . . . . . . . . 10 . . 3 . 5 2 6 . 2 4 2 4 . 10 7 5 9 Terrain Destroyed 480 | . 2 . 5 14 9 . 12 12 . . 2 10 4 . 3 301 7 2 6 2 2 4 2 4 . 10 9 40 18 Melee 61 | . . . . . . . . . . . . 10 . . . . . 2 6 . 2 4 2 4 . 10 7 5 9 Projectile 82 | . 2 . 5 1 9 . 7 12 . . 2 . 2 . 3 1 7 . . 2 . . . . . . 2 27 . AOE 335 | . . . . 13 . . 5 . . . . . . . . 300 . . . . . . . . . . . 8 9 Terrain Rammed . | . . . . . . . . . . . . . . . . . . . . . . . . . . . . . . Walls Destroyed . | . . . . . . . . . . . . . . . . . . . . . . . . . . . . . . Machines Disabled . | . . . . . . . . . . . . . . . . . . . . . . . . . . . . . . Actions | -11 -10 -10 -9 -9 -9 -8 -8 -8 -8 -6 -6 -6 -6 -6 -6 -6 -5 -5 -5 -5 -4 -4 -3 -3 -3 -2 -2 -2 -1 --------- Run | Yrd Mat Min Mat Min Exi Min Mat Sto Rec Fac Was Fac Ext Cet Arc Hub Fac Upp Upp War Pro Fac Res Arm Lab Res Qua Frg Acc Total 25481 | 54 385 235 342 825 1718 459 958 706 413 245 767 1553 1495 607 53 406 456 462 782 710 831 474 1381 1150 270 1963 2062 2250 1469 Wait 4265 | . 140 14 8 534 43 44 106 118 28 18 155 302 454 216 6 25 109 12 68 27 187 4 182 124 134 312 595 259 41 Move 18825 | 48 206 216 288 271 1478 387 673 512 379 210 534 1197 800 352 35 351 304 443 673 643 625 451 1121 746 112 1580 1277 1612 1301 Hop 1 | . . . . . . . . . . . . . . . . . . . 1 . . . . . . . . . . Pick Up 193 | . 10 . 13 6 27 . 18 2 1 3 5 9 1 4 . 3 7 . 12 6 1 2 8 8 2 7 9 22 7 Fast Attach 224 | 6 3 . 2 . 17 1 14 17 1 3 . 3 . 7 . 1 4 . 3 10 . 3 15 3 7 9 21 65 9 Attach 113 | . . . 1 . 14 2 6 3 1 5 . 1 1 3 . 2 2 . 2 1 1 3 5 5 . 5 9 32 9 Detach 52 | . . . . . 2 . 1 1 . 2 . . . 3 . . 2 . . 1 . 1 1 1 . 2 4 29 2 Swap 106 | . 1 . 2 4 7 1 9 4 . 1 . 3 8 1 . 1 4 4 . 1 . . 10 14 . 4 9 13 5 Drop 306 | . 4 . 4 7 35 2 20 13 2 2 5 15 5 9 . 3 10 1 8 16 1 3 24 16 7 12 29 48 5 Fire 432 | . 21 5 24 3 62 . 97 35 . . 46 9 55 1 6 3 10 . . 1 . . . . . . 4 49 1 Melee 642 | . . . . . 33 22 14 . . 1 22 14 18 11 6 17 4 2 15 . 16 7 15 86 8 32 105 109 85 Ram 4 | . . . . . . . . 1 1 . . . . . . . . . . . . . . . . . . 1 1 Kick . | . . . . . . . . . . . . . . . . . . . . . . . . . . . . . . Crush . | . . . . . . . . . . . . . . . . . . . . . . . . . . . . . . Escape Stasis 22 | . . . . . . . . . . . . . 5 . . . . . . . . . . 3 . . . 11 3 Rewire 292 | . . . . . . . . . . . . . 148 . . . . . . . . . . 144 . . . . . Trap 4 | . . . . . . . . . . . . . . . . . . . . 4 . . . . . . . . . Miscellaneous . | . . . . . . . . . . . . . . . . . . . . . . . . . . . . . . Route ------- -11/Scrapyard -10/Materials -10/Mines -9/Materials -9/Mines -9/Exiles (discovered 2 exits: *Min x2) -8/Mines (discovered 2 exits: *Mat x2) -8/Materials (discovered 3 exits: *Fac x2 / *Sto) -8/Storage (discovered 2 exits: *Fac / *Rec) -8/Recycling -6/Factory -6/Waste -6/Factory (discovered 6 exits: *Fac x2 / Low x2 / *Ext x2) -6/Extension (discovered 2 exits: *Fac / *Cet) -6/Cetus (discovered 2 exits: *Fac / *Arc) -6/Archives -6/Hub_04(d) -5/Factory -5/Upper Caves -5/Upper Caves -5/Warlord -4/Proximity Caves -4/Factory -3/Research (discovered 6 exits: *Res x3 / *Arm / Tes x2) -3/Armory -3/Lab -2/Research (discovered 3 exits: *Acc / *Qua x2) -2/Quarantine (discovered 3 exits: *Acc / [*Sec] / *Frg) -2/Protoforge -1/Access To Epsilon Eridani History --------- Turn | Location | Event 12 | -11/Scrapyard | Discovered new exit (range 13) 71 | -11/Scrapyard | Entered Materials 113 | -10/Materials | Identified exit to Mines 306 | -10/Materials | Build established: Mutant 621 | -10/Materials | Entered Mines 625 | -10/Mines | Learned location of Storage (-8) 959 | -10/Mines | Discovered new exit (range 6) 962 | -10/Mines | Received a Mining Laser from a helpful Derelict 996 | -10/Mines | Entered Materials 996 | -9/Materials | Accompanied by 1 ally 996 | -9/Materials | Evolved 2 slots: Propulsion x1, Utility x1 997 | -9/Materials | Identified exit to Mines 1681 | -9/Materials | Entered Mines 1692 | -9/Mines | Met a Derelict shopkeep closing up shop 1842 | -9/Mines | Assembled infested the area 2522 | -9/Mines | Assisted by bots powering up and referring to "LRC-V3" 2862 | -9/Mines | Discovered new exit (range 5) 2890 | -9/Mines | Entered Exiles 2890 | -9/Exiles | Accompanied by 5 allies 2891 | -9/Exiles | Identified exit to Mines 2920 | -9/Exiles | Led the pair of lost Derelicts to a safe place 2966 | -9/Exiles | Met 8R-AWN 3007 | -9/Exiles | Met EX-HEX 3103 | -9/Exiles | Met EX-DEC 3833 | -9/Exiles | Met EX-BIN 3867 | -9/Exiles | Aligned with FarCom system 3869 | -9/Exiles | Given EX-Vault access code 3936 | -9/Exiles | Opened EX-Vault 3953 | -9/Exiles | Found Longsword +1 3959 | -9/Exiles | Found PSU Rigger 3972 | -9/Exiles | Found Field Lobotomy Kit 4023 | -9/Exiles | Warned to stay clear of 0b10 Research branches 4401 | -9/Exiles | Attacked by the Exiles 4482 | -9/Exiles | Lost 3 allies 4550 | -9/Exiles | Destroyed 8R-AWN 4602 | -9/Exiles | Found Prototype Ballistic Gun 4660 | -9/Exiles | Identified 8R-AWN's Boregun 4721 | -9/Exiles | Lost 8 parts (1p2n3u2w) 4954 | -9/Exiles | Lost 4 parts (2n2u) 6183 | -9/Exiles | Destroyed EX-DEC 6205 | -9/Exiles | Destroyed EX-HEX 6211 | -9/Exiles | Build established: Gladiator 6242 | -9/Exiles | Destroyed EX-BIN 6348 | -9/Exiles | Found Deploy-a-Sentry 6354 | -9/Exiles | Found Prototype Processor 6676 | -9/Exiles | Discovered exit to Mines (range 14) 6690 | -9/Exiles | Stole four prototypes: PSU Rigger, Field Lobotomy Kit, Longsword +1, Deploy-a-Sentry 6690 | -9/Exiles | Entered Mines 6700 | -8/Mines | Core integrity fell below 50% 7024 | -8/Mines | Discovered new exit (range 15) 7250 | -8/Mines | Discovered new exit (range 9) 7360 | -8/Mines | Entered Materials 7360 | -8/Materials | Evolved 2 slots: Propulsion x1, Utility x1 7463 | -8/Materials | Build established: Scavenger-Gladiator 7515 | -8/Materials | Discovered new exit (range 14) 7545 | -8/Materials | Identified exit to Factory 7681 | -8/Materials | Lost 4 parts (1n2u1w) 7806 | -8/Materials | Repaired Imp. Aluminum Leg 7868 | -8/Materials | Repaired Broken Mak. Leg 7941 | -8/Materials | Identified Exp. Core Analyzer 8149 | -8/Materials | Discovered exit to Factory (range 5) 8349 | -8/Materials | Identified exit to Storage 8519 | -8/Materials | Build established: Scavenger-Mutant 8574 | -8/Materials | Lost 5 parts (1p3n1w) 8605 | -8/Materials | Entered Storage 8922 | -8/Storage | Met 01-MTF 8936 | -8/Storage | Discovered exit to Factory (range 16) 9054 | -8/Storage | Garrison activated, responded to threat 9184 | -8/Storage | Build established: Mutant 9378 | -8/Storage | Discovered new exit (range 14) 9410 | -8/Storage | Identified exit to Recycling 9415 | -8/Storage | Entered Recycling 9415 | -8/Recycling | Accompanied by 1 ally (01-MTF) 9724 | -8/Recycling | Discovered new exit (range 5) 9764 | -8/Recycling | Scanned before Scraplab entrance 9843 | -8/Recycling | Identified exit to Factory 9844 | -8/Recycling | Entered Factory 9844 | -6/Factory | Evolved 4 slots: Power x1, Propulsion x2, Utility x1 9954 | -6/Factory | Sucked down chute 9954 | -6/Factory | Entered Waste 9978 | -6/Waste | Spotted C-40 Crusher 9983 | -6/Waste | Destroyed C-40 Crusher 9993 | -6/Waste | Spotted C-40 Crusher 10006 | -6/Waste | Destroyed C-40 Crusher 10016 | -6/Waste | Spotted C-40 Crusher 10017 | -6/Waste | Spotted C-40 Crusher 10019 | -6/Waste | Spotted C-40 Crusher 10025 | -6/Waste | Spotted C-40 Crusher 10042 | -6/Waste | Destroyed C-40 Crusher 10044 | -6/Waste | Destroyed C-40 Crusher 10056 | -6/Waste | Destroyed C-40 Crusher 10092 | -6/Waste | Build established: Scavenger-Mutant 10166 | -6/Waste | Destroyed C-40 Crusher 10180 | -6/Waste | Discovered new exit (range 16) 10238 | -6/Waste | Warlord forces began an assault 10396 | -6/Waste | Identified exit to Factory 10436 | -6/Waste | Found Fusion Bomb Launcher 10440 | -6/Waste | Entered Factory 10440 | -6/Factory | Accompanied by 16 allies 10832 | -6/Factory | Discovered new exit (range 4) 10834 | -6/Factory | Identified exit to Factory 10899 | -6/Factory | Build established: Mutant 10979 | -6/Factory | Discovered exit to Factory (range 15) 11111 | -6/Factory | P-60 Hacker assimilated allied TB-57N(g) 11153 | -6/Factory | Identified exit to Lower Caves 11153 | -6/Factory | Identified exit to Extension 11279 | -6/Factory | Entered Extension 11279 | -6/Extension | Accompanied by 9 allies 11296 | -6/Extension | Rescued a captive Derelict 11298 | -6/Extension | Rescued a captive Derelict 11461 | -6/Extension | Rescued a captive Derelict 11462 | -6/Extension | Rescued a captive Derelict 11629 | -6/Extension | First assault squad dispatched 11681 | -6/Extension | Build established: Commander-Mutant 11691 | -6/Extension | Rescued a captive Derelict 11696 | -6/Extension | Rescued a captive Derelict 11698 | -6/Extension | Rescued a captive Derelict 12071 | -6/Extension | Spotted B-75 Beast 12093 | -6/Extension | Assimilated B-75 Beast with FLK Orb 12122 | -6/Extension | Spotted B-75 Beast 12177 | -6/Extension | Lost 15 allies 12278 | -6/Extension | Rescued a captive Derelict 12321 | -6/Extension | Rescued A7 12373 | -6/Extension | Discovered exit to Factory (range 10) 12373 | -6/Extension | Discovered new exit (range 6) 12376 | -6/Extension | Identified exit to Cetus 12394 | -6/Extension | Entered Cetus 12394 | -6/Cetus | Accompanied by 4 allies (A7) 12399 | -6/Cetus | Acquired a Cetus Manufacturing Module code from A7 12437 | -6/Cetus | Spotted Cetus Guard 12437 | -6/Cetus | Spotted Cetus Guard 12437 | -6/Cetus | Spotted Cetus Guard 12438 | -6/Cetus | Spotted Cetus Guard 12442 | -6/Cetus | Allies destroyed Cetus Guard 12454 | -6/Cetus | Allies destroyed Cetus Guard 12470 | -6/Cetus | Allies destroyed Cetus Guard 12481 | -6/Cetus | Destroyed Cetus Guard 12485 | -6/Cetus | Extracted ID and sensor layout for unrecognized location from A7's data core 12490 | -6/Cetus | Found Prototype Protection 12490 | -6/Cetus | Identified Med. Regenerative Plating 12504 | -6/Cetus | Lost 4 allies 12525 | -6/Cetus | Started Cetus Manufacturing Module 12550 | -6/Cetus | Manufactured an Enhanced Grunt 12569 | -6/Cetus | Discovered new exit (range 16) 12575 | -6/Cetus | Manufactured an Enhanced Grunt 12600 | -6/Cetus | Manufactured an Enhanced Grunt 12625 | -6/Cetus | Manufactured an Enhanced Grunt 12650 | -6/Cetus | Manufactured an Enhanced Grunt 12693 | -6/Cetus | Spotted Cetus Guard 12694 | -6/Cetus | Assimilated Cetus Guard with FLK Orb 12703 | -6/Cetus | Spotted Cetus Guard 12707 | -6/Cetus | Spotted Cetus Guard 12724 | -6/Cetus | Spotted Cetus Guard 12738 | -6/Cetus | Allies destroyed Cetus Guard 12739 | -6/Cetus | Discovered exit to Factory (range 16) 12747 | -6/Cetus | Allies destroyed Cetus Guard 12748 | -6/Cetus | Met Revision 17 12768 | -6/Cetus | Lost 4 allies 12775 | -6/Cetus | Found Prototype Device 12775 | -6/Cetus | Identified Exp. Thermal Shield 12792 | -6/Cetus | Identified exit to Archives 12799 | -6/Cetus | Build established: Scavenger-Mutant 12812 | -6/Cetus | Entered Archives 12812 | -6/Archives | Accompanied by 2 allies 12852 | -6/Archives | Discovered new exit (range 13) 12857 | -6/Archives | Identified exit to Hub_04(d) 12858 | -6/Archives | Entered Hub_04(d) 13068 | -6/Hub_04(d) | Network Hub disabled 13068 | -6/Hub_04(d) | Network Hub disabled 13068 | -6/Hub_04(d) | Garrison activated, responded to threat 13092 | -6/Hub_04(d) | Discovered exit to Factory (range 10) 13104 | -6/Hub_04(d) | Entered Factory 13104 | -5/Factory | Evolved 2 slots: Utility x2 13380 | -5/Factory | Discovered new exit (range 8) 13384 | -5/Factory | Identified exit to Upper Caves 13409 | -5/Factory | Entered Upper Caves 13620 | -5/Upper Caves | Learned Factory terminal intel 13640 | -5/Upper Caves | Discovered new exit (range 8) 13642 | -5/Upper Caves | Identified exit to Upper Caves 13643 | -5/Upper Caves | Build established: Scavenger-Gladiator 13647 | -5/Upper Caves | Entered another Upper Caves area 13667 | -5/Upper Caves | Encountered a Warlord checkpoint 13705 | -5/Upper Caves | Found Alien Artifact 13705 | -5/Upper Caves | Identified Dimensional Node Initializer 13705 | -5/Upper Caves | Initialized slip node 13847 | -5/Upper Caves | Encountered a Master Thief 13849 | -5/Upper Caves | Encountered a Master Thief 13850 | -5/Upper Caves | Encountered a Master Thief 13850 | -5/Upper Caves | DAS Turret deployed 13851 | -5/Upper Caves | Encountered a Master Thief 13855 | -5/Upper Caves | PSU Rigger stolen by Master Thief 13861 | -5/Upper Caves | Microactuators stolen by Master Thief 13863 | -5/Upper Caves | Mak. Terrain Scanner stolen by Master Thief 13863 | -5/Upper Caves | Adv. Transmission Jammer stolen by Master Thief 14055 | -5/Upper Caves | Discovered new exit (range 11) 14059 | -5/Upper Caves | Identified exit to Warlord 14066 | -5/Upper Caves | Entered Warlord 14081 | -5/Warlord | Discovered new exit (range 12) 14221 | -5/Warlord | Visited the Vortex Lab 14224 | -5/Warlord | Found Prototype Energy Gun 14241 | -5/Warlord | Warlord's base attacked by MAIN.C 14260 | -5/Warlord | Identified Vortex Rail 14279 | -5/Warlord | Found Prototype Processor 14279 | -5/Warlord | Identified Exp. Targeting Computer 14282 | -5/Warlord | Found Prototype Processor 14282 | -5/Warlord | Identified Exp. Armor Integrity Analyzer 14288 | -5/Warlord | Found Prototype Reactor 14288 | -5/Warlord | Identified Vortex Chain Reactor 14336 | -5/Warlord | Met Warlord 14403 | -5/Warlord | Opened side exit 14415 | -5/Warlord | Identified exit to Proximity Caves 14415 | -5/Warlord | Entered Proximity Caves 14417 | -4/Proximity Caves | Spotter reported a threat 14424 | -4/Proximity Caves | Learned Research trap positions 14464 | -4/Proximity Caves | Learned location of Armory (-3) 14479 | -4/Proximity Caves | Learned Research stockpile data 14483 | -4/Proximity Caves | Spotted B-86 Titan 14819 | -4/Proximity Caves | Discovered new exit (range 15) 14829 | -4/Proximity Caves | Identified exit to Factory 14912 | -4/Proximity Caves | Entered Factory 14912 | -4/Factory | Evolved 2 slots: Utility x2 14913 | -4/Factory | Loaded intel: 26 terminal locations 15034 | -4/Factory | Discovered new exit (range 5) 15035 | -4/Factory | Identified exit to Research 15137 | -4/Factory | Build established: Scavenger-Mutant 15138 | -4/Factory | Entered Research 15138 | -3/Research | Evolved 2 slots: Propulsion x1, Utility x1 15139 | -3/Research | Loaded intel: 68 trap records 15178 | -3/Research | Discovered new exit (range 16) 15338 | -3/Research | Revision forces began assault on 0b10 15341 | -3/Research | Met up with Revision 17++ 15348 | -3/Research | Identified exit to Research 15471 | -3/Research | Spotted B-86 Titan 15565 | -3/Research | Identified exit to Armory 15565 | -3/Research | Identified exit to Testing 15570 | -3/Research | Central database locked down 15629 | -3/Research | Spotted B-86 Titan 15838 | -3/Research | Research terminal network offline 15876 | -3/Research | Entered Armory 16418 | -3/Armory | Lost 4 allies 16541 | -3/Armory | P-80 Master assimilated allied Assassin 8c 16548 | -3/Armory | P-80 Master assimilated allied Assassin 8b 16583 | -3/Armory | Lost 3 allies 16622 | -3/Armory | Discovered new exit (range 3) 16670 | -3/Armory | Identified exit to Lab 16671 | -3/Armory | Entered Lab 16671 | -3/Lab | Discovered exit to Research (range 9) 16676 | -3/Lab | Hidden lab's door opened automatically 16676 | -3/Lab | Sensor layout match revealed 16803 | -3/Lab | Gained access to the hidden lab's interior 16812 | -3/Lab | Found Alien Artifact 16817 | -3/Lab | Found Alien Artifact 16817 | -3/Lab | Identified Integrated Mediator 16817 | -3/Lab | Installed Integrated Mediator, increased core attachment efficiency 16826 | -3/Lab | Found Alien Artifact 16826 | -3/Lab | Identified Core Regenerator 16826 | -3/Lab | Used Core Regenerator, restored core integrity (+95) 16848 | -3/Lab | Found Prototype Protection 16848 | -3/Lab | Identified Hvy. Regenerative Plating 16851 | -3/Lab | Found Prototype Hackware 16854 | -3/Lab | Found Prototype Energy Cannon 16854 | -3/Lab | Identified Potential Cannon 16857 | -3/Lab | Found Prototype Energy Gun 16857 | -3/Lab | Identified Hyp. EM Gauss Rifle 16884 | -3/Lab | Entered Research 16884 | -2/Research | Warlord forces began assault on 0b10 16884 | -2/Research | Evolved 2 slots: Propulsion x1, Utility x1 16929 | -2/Research | Spotted B-90 Cyclops 16976 | -2/Research | Identified exit to Quarantine 16994 | -2/Research | Research machine network offline 17077 | -2/Research | Spotted B-90 Cyclops 17165 | -2/Research | Build established: Gladiator 17171 | -2/Research | Borebot progress halted 17415 | -2/Research | Met up with Warlord 17504 | -2/Research | Discovered new exit (range 16) 17510 | -2/Research | Found Exp. Core Analyzer 17539 | -2/Research | Identified exit to Access 17629 | -2/Research | Borebot progress halted 17664 | -2/Research | Borebot progress halted 17844 | -2/Research | Build established: Scavenger-Mutant 17887 | -2/Research | Warlord invited to help at Command 17887 | -2/Research | Given Cave Seal Controls access code 17897 | -2/Research | Spotted Striker 17905 | -2/Research | Entered Quarantine 17911 | -2/Quarantine | Cryocooling Duct disabled 17926 | -2/Quarantine | Ambient heat levels rising (+20) 17926 | -2/Quarantine | Non-combat units ordered to evacuate 18047 | -2/Quarantine | Central database locked down 18080 | -2/Quarantine | Identified Quantum Router 18088 | -2/Quarantine | Found Alien Impact Weapon 18129 | -2/Quarantine | Identified Core Stripper 18307 | -2/Quarantine | Discovered exit to Access (range 11) 18345 | -2/Quarantine | Found Alien Artifact 18345 | -2/Quarantine | Identified Phase Redirector 18412 | -2/Quarantine | Found Alien Energy Cannon 18412 | -2/Quarantine | Identified Core Cannon 18642 | -2/Quarantine | Found Alien Artifact 18642 | -2/Quarantine | Identified Subatomic Replicator 18962 | -2/Quarantine | Spotted Fortress 19003 | -2/Quarantine | Destroyed Fortress 19014 | -2/Quarantine | Found Prototype Device 19014 | -2/Quarantine | Identified Thermal Barrier 19017 | -2/Quarantine | Found Prototype Protection 19017 | -2/Quarantine | Identified Centrium Heavy Armor Plating 19022 | -2/Quarantine | Found Prototype Device 19022 | -2/Quarantine | Identified Exp. EM Shield 19024 | -2/Quarantine | Found Prototype Device 19024 | -2/Quarantine | Identified Exp. Force Field 19031 | -2/Quarantine | Found Vortex Chain Reactor 19043 | -2/Quarantine | Found Vortex Chain Reactor 19079 | -2/Quarantine | Discovered new exit (range 5) 19079 | -2/Quarantine | Discovered new exit (range 6) 19080 | -2/Quarantine | Identified exit to Protoforge 19155 | -2/Quarantine | First assault squad dispatched 19287 | -2/Quarantine | Entered Protoforge 19321 | -2/Protoforge | Spotted Hotshot 19379 | -2/Protoforge | Superfortress began startup sequence 19386 | -2/Protoforge | Spotted Hotshot 19386 | -2/Protoforge | Spotted Hotshot 19388 | -2/Protoforge | Spotted Hotshot 19388 | -2/Protoforge | Identified Transdimensional Reconstructor 19388 | -2/Protoforge | Warped through subspace 19388 | -2/Protoforge | Spotted Hotshot 19388 | -2/Protoforge | Spotted Hotshot 19388 | -2/Protoforge | Spotted Hotshot 19388 | -2/Protoforge | Spotted Hotshot 19389 | -2/Protoforge | Spotted Hotshot 19390 | -2/Protoforge | Spotted Hotshot 19390 | -2/Protoforge | Spotted Hotshot 19391 | -2/Protoforge | Spotted Hotshot 19410 | -2/Protoforge | Used Subatomic Replicator to replicate Field Lobotomy Kit 19416 | -2/Protoforge | Spotted AP7-3 19416 | -2/Protoforge | Spotted AP7-3 19418 | -2/Protoforge | Spotted Overlord 19421 | -2/Protoforge | Assimilated Overlord with FLK Orb 19429 | -2/Protoforge | Spotted EXE-6 19429 | -2/Protoforge | Spotted EXE-6 19433 | -2/Protoforge | Assimilated EXE-6 with FLK Orb 19433 | -2/Protoforge | Allies destroyed EXE-6 19440 | -2/Protoforge | Found Exp. Core Analyzer 19441 | -2/Protoforge | Found Prototype Ballistic Gun 19441 | -2/Protoforge | Identified Cep. XC Strikerail 19453 | -2/Protoforge | Spotted Decapitator 19458 | -2/Protoforge | Spotted Decapitator 19536 | -2/Protoforge | System corruption reached 10% 19560 | -2/Protoforge | Spotted V751-f 19560 | -2/Protoforge | Spotted V344-g 19564 | -2/Protoforge | Spotted V342-u 19567 | -2/Protoforge | Assimilated V751-f with FLK Orb 19570 | -2/Protoforge | Assimilated V342-u with FLK Orb 19573 | -2/Protoforge | Assimilated V344-g with FLK Orb 19580 | -2/Protoforge | Lost 3 parts (1p2u) 19610 | -2/Protoforge | Destroyed AP7-3 19612 | -2/Protoforge | Allies destroyed AP7-3 19616 | -2/Protoforge | Found Prototype Processor 19616 | -2/Protoforge | Identified Exp. Target Analyzer 19618 | -2/Protoforge | Found Prototype Energy Gun 19618 | -2/Protoforge | Identified Enh. Gamma Rifle 19645 | -2/Protoforge | Spotted V111-v 19646 | -2/Protoforge | Destroyed V111-v 19652 | -2/Protoforge | Found Prototype Processor 19652 | -2/Protoforge | Identified Exp. Melee Analysis Suite 19659 | -2/Protoforge | Found Prototype Protection 19659 | -2/Protoforge | Identified Cep. Core Shell 19665 | -2/Protoforge | Found Prototype Processor 19665 | -2/Protoforge | Identified Cep. Projectile Intercept Suite 19667 | -2/Protoforge | Found Prototype Device 19667 | -2/Protoforge | Identified Exp. EM Disruption Field 19671 | -2/Protoforge | Found Prototype Device 19671 | -2/Protoforge | Identified Cep. Reaction Jets 19675 | -2/Protoforge | Found Prototype Device 19675 | -2/Protoforge | Identified Exp. Shock Absorption System 19698 | -2/Protoforge | Found Prototype Protection 19698 | -2/Protoforge | Identified Cep. RG22 Armor 19700 | -2/Protoforge | Found Cep. RG22 Armor 19702 | -2/Protoforge | Found Cep. RG22 Armor 19706 | -2/Protoforge | Found Prototype Device 19706 | -2/Protoforge | Identified Cep. Phase Shift Module 19712 | -2/Protoforge | Found Cep. Phase Shift Module 19723 | -2/Protoforge | Found Prototype Device 19723 | -2/Protoforge | Identified Exp. Remote Shield 19731 | -2/Protoforge | Found Exp. Remote Shield 19840 | -2/Protoforge | Found Prototype Slashing Weapon 19840 | -2/Protoforge | Identified Exp. Terror Saw 19847 | -2/Protoforge | Found Prototype Device 19847 | -2/Protoforge | Identified Crosscalibrator 19856 | -2/Protoforge | Spotted Immortal 19856 | -2/Protoforge | Spotted Immortal 19869 | -2/Protoforge | Spotted Decapitator 19869 | -2/Protoforge | Spotted Decapitator 19869 | -2/Protoforge | Spotted Decapitator 19869 | -2/Protoforge | Spotted Decapitator 19890 | -2/Protoforge | Destroyed Decapitator 19927 | -2/Protoforge | Lost 5 allies 19938 | -2/Protoforge | Core integrity fell below 50% 19938 | -2/Protoforge | Destroyed Decapitator 19941 | -2/Protoforge | Destroyed Decapitator 19952 | -2/Protoforge | Lost 3 parts (1p1u1w) 19953 | -2/Protoforge | Destroyed Decapitator 19957 | -2/Protoforge | Core integrity fell below 20% 19961 | -2/Protoforge | Found Prototype Launcher 19962 | -2/Protoforge | Found Prototype Launcher 19967 | -2/Protoforge | Identified Cep. Concussive Dispersal Blaster (x2) 19970 | -2/Protoforge | Found Exp. Target Analyzer 20032 | -2/Protoforge | Found Cep. Hypertargeting System 20049 | -2/Protoforge | Found Cep. Rapid Grenade Launcher 20093 | -2/Protoforge | Destroyed Immortal 20093 | -2/Protoforge | Destroyed Immortal 20160 | -2/Protoforge | Found Prototype Energy Cannon 20160 | -2/Protoforge | Identified Cep. Plasma Driver 20199 | -2/Protoforge | Destroyed 9 combat bots 20237 | -2/Protoforge | Spotted V680-y 20244 | -2/Protoforge | Destroyed V680-y 20254 | -2/Protoforge | Found Prototype Energy Gun 20254 | -2/Protoforge | Identified Cep. Variable Chargecaster 20282 | -2/Protoforge | Found Exp. Jetlance 20284 | -2/Protoforge | Found Exp. Jetlance 20286 | -2/Protoforge | Found Exp. Jetlance 20287 | -2/Protoforge | First assault squad dispatched 20289 | -2/Protoforge | Found Faulty Cep. Deflector Sword 20292 | -2/Protoforge | Found Exp. Terror Saw 20354 | -2/Protoforge | Spotted V014-d 20354 | -2/Protoforge | Spotted V256-z 20373 | -2/Protoforge | Destroyed V014-d 20414 | -2/Protoforge | Destroyed V256-z 20441 | -2/Protoforge | Found Faulty Exp. Active Sensor Suite 20461 | -2/Protoforge | Found Corrupted Med. Regenerative Plating 20462 | -2/Protoforge | System corruption reached 30% 20501 | -2/Protoforge | Build established: Scavenger-Gladiator 20593 | -2/Protoforge | Destroyed 12 combat bots 20605 | -2/Protoforge | Spotted Decapitator 20605 | -2/Protoforge | Spotted V791-m 20605 | -2/Protoforge | Spotted V947-t 20605 | -2/Protoforge | Spotted Decapitator 20614 | -2/Protoforge | Found Cep. Zero-point Core 20642 | -2/Protoforge | Destroyed Decapitator 20644 | -2/Protoforge | Destroyed Decapitator 20678 | -2/Protoforge | Scanned by Researcher 20704 | -2/Protoforge | Destroyed 9 combat bots 20729 | -2/Protoforge | Found Cep. Core Shell 20732 | -2/Protoforge | Found Cep. Core Shell 20808 | -2/Protoforge | Discovered exit to Access (range 4) 20808 | -2/Protoforge | Entered Access 20808 | -1/Access | Evolved 2 slots: Utility x2 21028 | -1/Access | Build established: Sprinter 21058 | -1/Access | First assault squad dispatched 21076 | -1/Access | Unchained authorized (QV-33N) 21279 | -1/Access | Destroyed 7 combat bots 21280 | -1/Access | Discovered new exit (range 7) 21433 | -1/Access | Destroyed 16 combat bots 21443 | -1/Access | High security lockdown imminent 21465 | -1/Access | Core integrity fell below 50% 21477 | -1/Access | Released all parts (5) 21480 | *** | Escaped! Last Messages --------------- 21461_ L-61 Swordsman destroyed. 21461_ Deflected attack with Exp. Jetlance. 21464_ G-73 Enforcer destroyed. 21465_ M-36 Artificer repairs G-73 Enforcer. 21467_ Acquired Flexi-carbon Leg. 21470_ Critical hit (Burn: +37). 21470_ Acquired 5 matter. 21472_ Critical hit (Burn: +37). 21472_ Flexi-carbon Leg destroyed. 21472_ G-73 Enforcer suffers critical hit (Impale). 21472_ Destroyed Phase Gun. 21473_ Exp. Armor Integrity Analyzer destroyed. 21473_ Deflected attack with Exp. Jetlance. 21477_ Critical hit (Burn: +37). 21477_ Released Cep. RG22 Armor. 21477_ Released Exp. Jetlance. 21477_ Released Adv. Melee Analysis Suite. 21477_ Released Cep. Zero-point Core. 21477_ Released Cep. Projectile Intercept Suite. Map ----- +----------------------------------------------------+ | ??????????????????????????????????????????######?? | | ??????????????????????????????????????????# = #?? | | ??????????????????????????????????????????# ### | | ??????????????????????????????????????????# # | | ??????????????????????????????????????????# # | | ??????????????????????????????????????????# # | | ??????????????????????????????????????????# + | | ??????????????????????????????????????????#! # | | ??????????????????????????????????????????# [#* | | ??????????????????????????????????????????# =[+%# | | ??????????????????????????????????????????####"### | | ?????????????????????????????????????????????# #?? | | ?????????????????????????????????????????????# #?? | | ??????????????????????????????????????????####+### | | ??????????????????????????????????????????# | | ??????????????????????????????????????????# | | ??????????????????????????????????????????# " | | ??????????????????????????????????????????# "" | | ??????????????????????????????????????????# " | | ??????????????????????????????????????????# | | ???????????????????#""""""""""#???????????# | | ???????????????????# #?########### | | ???????????????????# ### #######+# | | ???????????????????# # # #### % | | ???????????????????# "" # | | ???????????????????# "@ # | | ???????????????????# # # # # | | ???????????????????# # # ## ## # | | ???????????????????# # # #### | | ??????????????????## !!/ ## ## | | ??????????????????# ! %/ #### # | | ??????????????????##"" !!=! ### # | | ???????????????????#"" !%%%! #?# ## | | ???????????????????#"" =/=*%#?## # # | | ???????????????????#T ggggg*#??## # | | ???????????????????#"" g [ !m!###?## %= ## ##### | | ???????????????????#"" !%%# #??##=[/ ## ##???? | | ??????????????????##"" ! !%#######*%## #### | | ?????????????? "%" % !%!%*%!==[= " | | ????????????? " !=[%=![%[ | | ???????????? ############################### | | ???????????????????????????????????????????????? # | | ?????????????????????????????????????????????????? | | ?????????????????????????????????????????????????? | | ?????????????????????????????????????????????????? | | ?????????????????????????????????????????????????? | | ?????????????????????????????????????????????????? | | ?????????????????????????????????????????????????? | | ?????????????????????????????????????????????????? | | ?????????????????????????????????????????????????? | +----------------------------------------------------+ Best States ------------- Heat Dissipation 158 Coolant Potential 120 Energy Generation 55 Energy Capacity 1640 Matter Stores 300 Matter Capacity 300 Sight Range 16 Robot Scan Range 19 Terrain Scan Density 10 Jamming Range 16 Cloak Strength 4 Armor Coverage 825 Resistance: TH 30 Resistance: EM 75 Core Shielding 90 Propulsion Shielding 66 Utility Shielding 66 Weapon Shielding 66 Melee Speed Boost 30 Phase Shifting 25 Evasion (%) 102 Targeting Accuracy 12 Melee Accuracy 24 Target Analysis 15 Core Analysis 12 Armor Integrity Analysis 50 Recoil Reduction 3 Offensive Hacking 12 Authchip Count 3 Item Schematics ----------------- Exp. Energy Well | -2/Protoforge | Archive Lrn. Phase Cannon | -2/Protoforge | Archive Quantum Shading Machine | -2/Protoforge | Archive Robot Schematics ------------------ S-43 Plague | -2/Protoforge | Archive Fabricated ------------ Nothing Repaired ---------- Imp. Aluminum Leg | 36% | -8/Materials Mak. Leg | 28% | -8/Materials | Broken Studied --------- Antigrav System | -5/Factory | Hacked Gravmag Array | -5/Factory | Hacked Imp. Gravmag System | -5/Factory | Hacked Imp. Antigrav System | -3/Research | Hacked Cmb. Gravmag System | -3/Research | Hacked Antigrav Array | -2/Quarantine | Hacked Alien Tech Used ----------------- Dimensional Node Initializer Integrated Mediator Core Regenerator Core Stripper Phase Redirector Core Cannon Subatomic Replicator Transdimensional Reconstructor Achievements -------------- Equal Opportunity Bot Frienemies Challenges ------------ None Game ------ Seed CloakReactionDevice Manual? 0 Play Time 03:57:11 Cumulative 567.4 hours Start 2025.11.19 @ 12:28:20 End 2025.11.19 @ 19:13:59 Sessions 3 Manual Loads 0 Difficulty Rogue Special Mode None Game No. 901 Rogue 746 Adventurer 148 Explorer 7 Win Type 0 Total 27 Types 21/1/4/1/0/0/0/0/0/0 Lore% 81 Gallery% 84 Achievement% 69 Wizard Run 0 Options --------- Layout 1 ASCII 0 Keyboard 0 Movement Numpad Keybinds 0 Fullscreen 2 Font 24/Smallcaps Map View 50x35 Zoom Use 0% Tactical HUD 1 Map Filters NONE Filters NONE Steam 1 RUN: 3c9a2f40-9369-474e-b2ac-2e5452d664c1